{"text_format":"1","workbook":"xlsx","n_sheets":6,"sheets":["Main","Procedure","Competencies Table","Lists","Competency Working","Workbook Parameters"],"not_rendered":{"charts":0,"images":3,"macros":1,"external_links":0,"defined_names":44,"comments":0,"pivot_tables":0},"unopened":[],"bounds":{"document_bytes":16777216,"sheet_cells":100000,"rows_first":2000,"rows_last":500,"rows_between":2000,"halvings":0,"cell_chars":16384,"cell_head_chars":4096},"cells_cut":0,"cells_raw":0,"read":"whole","date_system":"1900"}

{"sheet":"Main","index":0,"n_rows":131,"n_cols":14,"rows_kept":131,"cut":false,"hidden":false,"merged":[[125,10,125,13],[14,10,14,12],[16,12,16,13],[90,10,90,13],[92,10,92,13],[94,10,94,13],[49,10,49,13],[20,12,20,13],[50,10,50,13],[85,10,85,13],[51,10,51,13],[52,10,52,11],[71,10,71,13],[61,10,61,11],[66,10,66,11],[56,12,56,13],[55,12,55,13],[54,12,54,13],[57,12,57,13],[58,10,58,11],[59,10,59,11],[58,12,58,13],[59,12,59,13],[62,12,62,13],[121,10,121,13],[99,10,99,13],[100,10,100,13],[101,10,101,13],[102,10,102,13],[53,10,53,11],[54,10,54,11],[55,10,55,11],[56,10,56,11],[57,10,57,11],[53,12,53,13],[62,10,62,11],[103,10,103,13],[123,10,123,13],[21,10,21,13],[116,10,116,13],[117,10,117,13],[118,10,118,13],[119,10,119,13],[120,10,120,13],[111,10,111,13],[112,10,112,13],[122,10,122,13],[67,11,67,13],[68,11,68,13],[69,11,69,13],[113,10,113,13],[114,10,114,13],[115,10,115,13],[63,12,63,13],[63,10,63,11],[95,10,95,13],[96,10,96,13],[87,10,87,13],[104,10,104,13],[97,10,97,13],[98,10,98,13],[76,10,76,13],[77,10,77,13],[65,10,65,13],[74,10,74,13]]}
[null,{"$f":"INDEX(C1:I1,$B$2)","v":0},0,{"$f":"IFERROR(INDEX(Lists!$C$3:$C$4,Main!D2),\"\")","v":"Mechanical"},{"$f":"IFERROR(INDEX(Lists!$C$3:$C$4,Main!E2),\"\")","v":"Electrical"},null,{"$f":"IFERROR(INDEX(Lists!$C$3:$C$4,Main!G2),\"\")","v":""},{"$f":"IFERROR(INDEX(Lists!$C$3:$C$4,Main!H2),\"\")","v":""},{"$f":"IFERROR(INDEX(Lists!$C$3:$C$4,Main!I2),\"\")","v":""},null,"(Always use/download latest form from nswecinductions.com.au)",null,{"$f":"IF(AdminAccess=TRUE,\"WARNING: Admin Mode On\",\"\")","v":""},"Contractor Form Version 3.7"]
["Indexes:",{"$f":"MATCH(L17,C1:I1,0)","v":1},0,1,2,3,4,5,6]
[null,{"$f":"INDEX(C3:I3,$B$2)","v":"Yes"},"Yes","Yes","Yes",null,null,null,null,null,{"$f":"\"Statutory Appointment Letter - \"&L17","v":"Statutory Appointment Letter - "},null,null,"CF Version 3.7"]
[null,"Yes","Yes","Yes","Yes"]
[null,"Yes","Yes","Yes","Yes",null,null,null,null,null,"* Surname:",null,"* Given Names:"]
[null,"Yes","Yes","Yes","Yes"]
[null,"Yes","Yes","Yes","Yes",null,null,null,null,null,"* Date of Birth (DD/MM/YYYY):",null,"* Occupation:"]
[null,"Yes","Yes","Yes","Yes"]
[null,"Yes","Yes","Yes","Yes",null,null,null,null,null,"* Certifcate of Proficiency or Equiv:",null,"Qualifications - Other:"]
[null,"Yes","Yes","Yes","Yes"]
[null,"Yes","Yes","Yes","Yes",null,null,null,null,null,"* Company:",null,"* Pegasus Number:"]
[null,"Yes","Yes","Yes","Yes"]
[null,"Yes","Yes","Yes","Yes",null,null,null,null,null,"* Date (DD/MM/YYYY):",null,"* MAC Site Contact:"]
[null,"Yes","Yes","Yes","Yes"]
[null,"Yes","Yes","Yes","Yes",null,null,null,null,null,"* I confirm I have read and prepared this document and the supporting attachments for review as per the requirements of Mt Arthur Coal. Failure to do this may result in rejection of appointment. (Click \"Show Requirements, Quick Reference Guide & Refence Documents\" for detailed information on how to Access TEMPO and download your relevant Documents for review )"]
[null,"Yes","Yes","Yes","Yes",null,null,null,null,null,{"$f":"IF(AllMandartoryFieldsCompleted(),\"\",\"Please complete all fields marked as mandatory (*) above.\")","v":"Please complete all fields marked as mandatory (*) above."}]
[null,"Yes","Yes","Yes","Yes",null,null,null,null,null,"Select Discipline:"]
[null,"No","No","Yes","Yes"]
[null,"No","No","No","No",null,null,null,null,null,"Select Electrical Work Area(s):"]
[null,"No","No","No","No"]
[null,"No","No","Yes","Yes",null,null,null,null,null,"Select Competency Area:",null,"Note: Competencies starting with an asterisk are a mandatory requirement."]
[null,{"$f":"_xlfn.SINGLE(INDEX(C22:I22,$B$2))","v":{"$error":"#NAME?"}},"No","Yes","No",null,null,null,null,null,"List below details the minimum mandatory Requirements for this Competency Area:"]
["Formula Changes",{"$f":"IF($K23=\"\",\"No\",\"Yes\")","v":"No"}]
[null,{"$f":"IF($K24=\"\",\"No\",\"Yes\")","v":"No"},null,null,null,null,null,null,null," "]
[null,"No"]
[null,"No",null,null,null,null,null,null,null," "]
[null,"No"]
[null,"No"]
[null,"No"]
[null,"No"]
[null,"No"]
[null,"No"]
[null,"No"]
[null,"No"]
[null,"No"]
[null,"No"]
[null,"No"]
[null,"No"]
[null,"No"]
[null,"No"]
[null,"No"]
[null,"No"]
[null,"No"]
[null,"No"]
[null,"No"]
[null,"No"]
[null,"No"]
["Formula Changes",{"$f":"_xlfn.SINGLE(INDEX(C48:I48,$B$2))","v":{"$error":"#NAME?"}},"No","Yes","Yes"]
[null,{"$f":"_xlfn.SINGLE(INDEX(C49:I49,$B$2))","v":{"$error":"#NAME?"}},"No","Yes","No",null,null,null,null,null,{"$f":"IF(SupervisionRequired=\"\",\"Please select competency area above before continuing\",SupervisionRequired&\" supervision is required for this area of competency\")","v":"Please select competency area above before continuing"}]
[null,{"$f":"_xlfn.SINGLE(INDEX(C50:I50,$B$2))","v":{"$error":"#NAME?"}},"No","Yes","No",null,null,null,null,null,{"$f":"IFERROR(VLOOKUP('Workbook Parameters'!B4,Lists!$C$13:$D$15,2,0),\" \")","v":" "}]
["Formula Changes",{"$f":"IF(CompetencyAreaInput=\"\",\"No\",INDEX(C51:I51,$B$2))","v":"No"},"No",{"$f":"IF(AllAccepted,\"No\",\"Yes\")","v":"Yes"},"Yes","Yes","Yes","Yes","Yes",null,"Not all mandatory competencies have been selected above. This person is currently not permitted to work onsite."]
["Formula Changes",{"$f":"IF(AllAccepted,INDEX(C52:I52,$B$2),\"No\")","v":"No"},"No","Yes","No"]
[null,{"$f":"IF(AllAccepted,INDEX(C53:I53,$B$2),\"No\")","v":"No"},"No","No","Yes",null,null,null,null,null,"Table 1 - Work Areas (MAC USE ONLY):"]
[null,"No","No","No","Yes",null,null,null,null,null,"Statutory Electrical Engineers Delegate",null,"Unrestricted Electrical Operating Area Access (LV)"]
[null,"No","No","No","Yes",null,null,null,null,null,"Unrestricted Electrical Access to High Voltage Areas (HV)",null,"High Voltage Authorised Permit Holder"]
[null,"No","No","No","Yes",null,null,null,null,null,"Electric Drive Truck High Voltage Authorised Isolator",null,"Electric Drive Truck High Voltage Authorised Permit Holder"]
[null,"No","No","No","Yes",null,null,null,null,null,"Safety Observer",null,"Live Testing"]
[null,"No","No","No","Yes",null,null,null,null,null,"Test and Tag",null,"Access & Mark Up Electrical Drawings"]
[null,"No","No","No","Yes",null,null,null,null,null,"Permanently Adjust Protection Settings After Approval of the Electrical Engineer in Charge",null,"Sign Permits to Dig (Electrical)"]
[null,{"$f":"_xlfn.SINGLE(IF(AllAccepted,INDEX(C60:I60,$B$2),\"No\"))","v":{"$error":"#NAME?"}},"No","No","Yes",null,null,null,null,null,"Investigate Indicated Protection Trips and Resets"]
[null,"No","No","No","Yes"]
[null,{"$f":"_xlfn.SINGLE(IF(AllAccepted,INDEX(C62:I62,$B$2),\"No\"))","v":{"$error":"#NAME?"}},"No","No","Yes",null,null,null,null,null,"Table 2 - Work Areas (MAC USE ONLY):"]
[null,{"$error":"#NAME?"},"No","No","Yes",null,null,null,null,null,"Mine",null,"Coal Handling Preparation Plant"]
[null,{"$error":"#NAME?"},"No","No","Yes",null,null,null,null,null,"Engineering",null,"Limited To:"]
[null,{"$error":"#NAME?"},"No","No","Yes"]
[null,{"$error":"#NAME?"},"No","No","Yes",null,null,null,null,null,"During this authorisation period you will report directly to a MAC Electrical Supervisor prior to, during and at the completion of any electrical work. Your level of Supervision during this time shall be as per Table 3 below."]
[null,{"$error":"#NAME?"},"No","No","Yes",null,null,null,null,null,"Table 3 - Supervision (MAC USE ONLY):"]
[null,{"$error":"#NAME?"},"No","No","Yes",null,null,null,null,null,"Direct Supervision","Direct supervision is where a person is under the immediate control and direction of the MAC supervisor of electrical work who must be in attendance at all times."]
[null,{"$error":"#NAME?"},"No","No","Yes",null,null,null,null,null,"General Supervision","Requires attendance by the MAC supervisor in the general work area. The nature of the work, the competence of the person, and understanding of the work needs to be considered to ensure safe and satisfactory work practices are followed when determining the frequency of supervision attendance on the job."]
[null,{"$error":"#NAME?"},"No","No","Yes",null,null,null,null,null,"Supervisor","A person who has acquired through training, qualifications or experience the knowledge and skills to carry out an electrical task without supervision and may supervise others who are conducting electrical work. Authorised by the Qualified electrical Engineer an Electrical Supervisor shall ensure that all work under their control is conducted safely and conforms to all relevant standards and legislation."]
[null,{"$error":"#NAME?"},"No","No","Yes"]
[null,{"$error":"#NAME?"},"No","Yes","Yes",null,null,null,null,null,"Acceptance of this appointment confirms acceptance of the obligations, duties and requirements imposed by Mt Arthur Coal.  All work is to conform to the Australian Standards, and the Mt Arthur Coal standards and procedures which are available on TEMPO see Procedure Tab for more information. It is the responsibility of the individual to ensure that their competencies remain valid.\n\nI confirm that I accept this appointment  for Mt Arthur Coal  and that the information provided is correct.  A copy of my Certificate, Transcript and Letter of Competency are attached."]
[null,{"$error":"#NAME?"},"No","No","No"]
[null,"No","No","No","No"]
[null,"No","No","Yes","No",null,null,null,null,null,"You have been deemed competent and are hereby authorised to carry out work in which you are familiar at Mt Arthur Coal in accordance with MAC-MEC-STD-013\n"]
[null,{"$f":"_xlfn.SINGLE(IF(AllAccepted,INDEX(C76:I76,$B$2),\"No\"))","v":{"$error":"#NAME?"}},"No","No","No"]
[null,"No","No","No","Yes",null,null,null,null,null,"You have been deemed competent and are hereby authorised to carry out electrical work as a Authorised Electrical Person in the areas which are marked \"Approved\" above for works at Mt Arthur Coal Mine."]
[null,"No","No","No","Yes",null,null,null,null,null,{"$f":"\"This authorisation will be for the duration of twelve (12) months starting on \"& TEXT(L13,\"dd mmmm yyyy\")&\".\"","v":"This authorisation will be for the duration of twelve (12) months starting on 00 January 1900."}]
[null,{"$f":"_xlfn.SINGLE(IF(AllAccepted,INDEX(C79:I79,$B$2),\"No\"))","v":{"$error":"#NAME?"}},"No","No","Yes"]
[null,{"$f":"IF(AllAccepted,INDEX(C80:I80,$B$2),\"No\")","v":"No"},"No","Yes","Yes",null,null,null,null,null,"Signed by: ",null,null,"Date  ____________________"]
[null,{"$f":"IF(AllAccepted,INDEX(C81:I81,$B$2),\"No\")","v":"No"},"No","Yes","Yes",null,null,null,null,null,null,{"$f":"N5&\" \"&L5&\" - \"&N11","v":"  - "}]
[null,{"$f":"_xlfn.SINGLE(IF(AllAccepted,INDEX(C82:I82,$B$2),\"No\"))","v":{"$error":"#NAME?"}},"No","No","Yes"]
[null,"No","No","Yes","Yes",null,null,null,null,null,"Signed by: "]
[null,"No","No","Yes","No",null,null,null,null,null,null,"Aaron Capararo, Principal Statutory Mechanical Engineer"]
[null,"No","No","No","Yes",null,null,null,null,null,null,"Michael (Bennett) Brewster, Principal Statutory Electrical Engineer"]
[null,"No","No","Yes","No",null,null,null,null,null,{"$f":"VLOOKUP(CompetencyAreaInput,Lists!$G$3:$H$77,2,FALSE)","v":{"$error":"#N/A"}}]
[null,{"$f":"_xlfn.SINGLE(IF(AllAccepted,INDEX(C87:I87,$B$2),\"No\"))","v":{"$error":"#NAME?"}},"No","Yes","No"]
[null,{"$f":"_xlfn.SINGLE(IF(AllAccepted,INDEX(C88:I88,$B$2),\"No\"))","v":{"$error":"#NAME?"}},"No","No","Yes",null,null,null,null,null,{"$f":"VLOOKUP(CompetencyAreaInput,Lists!$G$3:$H$77,2,FALSE)","v":{"$error":"#N/A"}}]
[null,"No","No","Yes","Yes"]
[null,"No","No","No","Yes"]
[null,"No","No","No","Yes",null,null,null,null,null,"Electrical Worker Declaration of Understanding"]
[null,"No","No","No","Yes"]
[null,"No","No","No","Yes",null,null,null,null,null,"The following rules apply to electrical work at the Mt Arthur open cut."]
[null,"No","No","No","Yes"]
[null,"No","No","No","Yes",null,null,null,null,null,"1. No Live Work (excluding testing) is to be carried out on live electrical conductors at voltages that exceed 50 volts AC or 120V DC (ripple free)."]
[null,"No","No","No","Yes",null,null,null,null,null,"2. “Test before Touch” is mandatory. No electrical worker is to touch a conductor that has the potential to be energised until that person has tested the conductor to ensure it is de-energised and has taken steps to ensure it will stay de-energised by means of isolation and the application of personal locks. All test equipment shall be tested prior to use and verified after the testing has taken place."]
[null,"No","No","No","Yes",null,null,null,null,null,"3. “Live testing” or testing for a known voltage above Extra Low Voltage (ELV) is the last resort. Refer MAC-ELC-PRO-013 Energised Fault Finding of LV Electrical Circuits"]
[null,"No","No","No","Yes",null,null,null,null,null,"4. High Voltage systems shall not be contacted until that person has verified the isolation, sighted that the circuit is effectively earthed, has also taken steps to ensure it will stay de-energised by means of isolation, have applied personal locks and a Access Permit issued. Only High Voltage authorised persons can isolate High Voltage. (Note: Any circuits above 1000 VAC or 1500VDC are to be considered High Voltage)."]
[null,"No","No","No","Yes",null,null,null,null,null,"5. Personal protective devices shall not be bridged, over-ridden or forced unless controls that are equal to or exceed the original protection level are put in place .E.g. Emergency stops, conveyor lanyards. "]
[null,"No","No","No","Yes",null,null,null,null,null,"6. Electrical Protection shall not be adjusted, modified, bridged, overridden, or forced without the direct consent of the Qualified Electrical Engineer or his delegate."]
[null,"No","No","No","Yes",null,null,null,null,null,"7. ARC Flash warnings shall be followed with all personnel wearing correct category PPE and applying all appropriate controls. "]
[null,"No","No","No","Yes",null,null,null,null,null,"8. All work shall meet good engineering practice. All electrical work shall be completed to meet any MAC standards, Australian standards, Codes of Practice, legislation. If relevant International standards are to be used then their specific application is to be approved by the Qualified Electrical Engineer or their Delegate."]
[null,"No","No","No","Yes",null,null,null,null,null,"9. Electrical enclosures, switchboards, switch rooms shall remain secured and locked at all times when not being worked upon. When being worked upon controls shall be put in place to restrict access to unauthorised personnel."]
[null,"No","No","No","Yes",null,null,null,null,null,"10. Any person conducting work or assisting in work on electrical apparatus/ installations in any capacity or role (including work upon disconnected apparatus, Extra Low Voltage circuits, data and software) shall be authorised in writing by the Statutory Electrical Engineer to conduct that work. "]
[null,"No","No","No","Yes",null,null,null,null,null,"I fully understand the above and will comply with these requirements when carrying out work at the Mt Arthur open cut. "]
[null,"No","No","No","Yes"]
[null,"No","No","No","Yes"]
[null,"No","No","No","Yes",null,null,null,null,null,{"$f":"\"Full Name: \"& N5&\" \"&L5","v":"Full Name:  "},"Date:________________"]
[null,"No","No","No","Yes",null,null,null,null,null,{"$f":"\"Company: \"& L11","v":"Company: "}]
[null,"No","No","No","Yes",null,null,null,null,null,"Signature:______________"]
[null,"No","No","No","Yes"]
[null,{"$f":"_xlfn.SINGLE(IF(AllAccepted,INDEX(C112:I112,$B$2),\"No\"))","v":{"$error":"#NAME?"}},"No","Yes","No",null,null,null,null,null,"Accountabilities"]
[null,{"$error":"#NAME?"},"No","Yes","No",null,null,null,null,null,"Principal Statutory Mechanical Engineer: \nEnsure resources are available to develop, implement and maintain the system to ensure work is performed only by those personnel competent and authorised to do so. Ensure that documentation and records are kept and that the system is audited."]
[null,{"$error":"#NAME?"},"No","Yes","No",null,null,null,null,null,"Managers, Superintendents and Supervisors: \nEnsure that all personnel under their control work within the requirements of this standard. \nEnsure that proof of competency is sourced prior to delegating work. \nMonitor the progress of work to ensure that the competency of personnel is adequate to perform the work safely.\n"]
[null,{"$error":"#NAME?"},"No","Yes","No",null,null,null,null,null,"Contracting companies: \nEnsure they understand and work within the requirements of this standard.\n"]
[null,{"$error":"#NAME?"},"No","Yes","No",null,null,null,null,null,"All personnel: \nSafely perform work for which they are competent and authorised.\nCarry out work in accordance with the sites engineering standards.\nEnsure competencies are maintained as current.\nSubmit any updated high risk work licences or competencies for upload into the site learning management system (LMS)\n\n"]
[null,{"$error":"#NAME?"},"No","Yes","No"]
[null,{"$error":"#NAME?"},"No","Yes","No",null,null,null,null,null,"General Requirements"]
[null,{"$error":"#NAME?"},"No","Yes","No",null,null,null,null,null,"Persons conducting mechanical works must be aware of the following requirements and ensure they comply with these where applicable to their role descriptions:\n- Their obligations under the Work Health and Safety Act and Regulations to include the Mines and Petroleum Sites Act and Regulation.\n- Competency requirements as detailed in this document\n- Authorisation requirements as detailed in this document\n- Induction requirements for site access before undertaking work\n- Isolation or permit training as detailed in MAC Isolation and Restoration of Energy Standard for the required level of work to be undertaken\n- Contractor requirements as detailed in the MAC contractor HSEC Management Procedure\n- Personal protective equipment (PPE) for the work being performed\n- Appropriate risk management practices for the task being undertaken e.g. safe work procedure, JHA & 60 seconds for safety\n- Undergo the appropriate induction in accordance with the work area\n- Specific standards and procedures must be followed before undertaking high risk tasks as determined by the MAC Safety Management System (SMS) including, for example, work at heights, hot work and confined space.\n"]
[null,{"$error":"#NAME?"},"No","Yes","No",null,null,null,null,null,"Personnel who hold high risk work licences unless specifically listed will have their competency managed through the onsite learning management system and will not receive a mechanical appointment. It is up to the individual to ensure their high risk work licence is maintained and submitted to MAC for upload onto LMS."]
[null,{"$error":"#NAME?"},"No","Yes","No",null,null,null,null,null,"Under the Work Health and Safety (Mines and Petroleum Sites) Regulation 2014 [NSW] Mechanical Tradesperson hold a statutory function Part 3 Coal mines other than underground mines, 23 Qualified mechanical tradesperson (1) States that the statutory function of qualified mechanical tradesperson is to supervise the installation, commissioning, maintenance and repair of mechanical plant at the mine."]
[null,{"$error":"#NAME?"},"No","Yes","No"]
[null,{"$error":"#NAME?"},"No","Yes","No",null,null,null,null,null,"Mechanical Competency"]
[null,{"$error":"#NAME?"},"No","Yes","No",null,null,null,null,null,"Personnel must meet the below criteria or be under the direct supervision of a person who has the competency in the task to be undertaken. This includes apprentices, trainees and trades assistant.\nIn order to be considered for appointment as one of the category below the applicant must submit the relevant application to the Principal Statutory Mechanical Engineer or their authorised delegate with all supporting documentation in-accordance with their role description to include a letter of competency from employer. The Applicant must not perform any mechanical work until they have been authorised to do so and have completed the area induction and area specific familiarisation.\nThe individual appointment letter is only valid for the company listed and only once countersigned and upload to the learning management system.   \n"]
[null,{"$f":"IF(AllAccepted,INDEX(C125:I125,$B$2),\"No\")","v":"No"},"No","Yes","No"]
[null,"No","No","Yes","No",null,null,null,null,null,"I fully understand the above and will comply with these requirements when carrying out work at the Mt Arthur open cut. "]
[null,"No","No","Yes","No"]
[null,"No","No","Yes","No"]
[null,"No","No","Yes","No",null,null,null,null,null,{"$f":"\"Full Name: \"& N5&\" \"&L5","v":"Full Name:  "},"Date:________________"]
[null,"No","No","Yes","No",null,null,null,null,null,{"$f":"\"Company: \"& L11","v":"Company: "}]
[null,"No","No","Yes","No",null,null,null,null,null,"Signature:______________"]

{"sheet":"Procedure","index":1,"n_rows":17,"n_cols":22,"rows_kept":17,"cut":false,"hidden":false,"merged":[]}
[]
[null,null,null,null,null,null,null,null,null,null,null,null,null,null,null,null,null,null,null,null,null,"Reference Documents"]
[]
[null,null,null,null,null,null,null,null,null,null,null,null,null,null,null,null,null,null,null,null,null,"To review the below documents please access Tempo (see PDF below for access/navigation details)"]
[]
[null,null,null,null,null,null,null,null,null,null,null,null,null,null,null,null,null,null,null,null,null,"- MAC-MEC-STD-013 Mechanical Competency"]
[null,null,null,null,null,null,null,null,null,null,null,null,null,null,null,null,null,null,null,null,null,"- MAC-STE-STD-144 Managing Risks from High Pressure Jetting"]
[null,null,null,null,null,null,null,null,null,null,null,null,null,null,null,null,null,null,null,null,null,"- MAC-ENG-STD-006 Tyres & Rims"]
[]
[]
[]
[]
[]
[]
[]
[]
[null,null,null,null,null,null,null,null,null,null,null,null,null,null,null,null,null,null,null,null,null,"Double Click to open Quick Reference Guide"]

{"sheet":"Competencies Table","index":2,"n_rows":26,"n_cols":76,"rows_kept":26,"cut":false,"hidden":true,"merged":[]}
[]
[null,null,null,null,null,null,null,null,null,null,null,null,null,null,null,null,null,null,null,null,null,null,null,null,null,null,null,null,null,null,null,null,null,null,null,null,null,null,null,null,null,null,null,null,null,null,null,null,null,null,null,null,null,null,null,null,null,null,"Electrical Data from here on ------->"]
[]
[]
["Competency Name:",null,"Apprentice - Mobile Plant Technician","Apprentice - Mechanical Fitter (Fixed Plant)","Apprentice - Fabrication Trade (Boilermaking)","Apprentice - Mechanical Trade (Other)","Apprentice - Building Trade (Plumber & Gas Fitter)","Apprentice - Building Trade (Building & Carpentry)","Apprentice - Building Trade (Other)","Automotive mechanic  - Body maker","Automotive mechanic - Brake mechanic","Automotive mechanic - Exhaust repairer","Automotive mechanic - Motor Mechanic","Automotive mechanic - Front end specialist","Automotive mechanic - Vehicle painter","Automotive mechanic - Panel beater","Automotive mechanic - Radiator repairer","Automotive mechanic - Transmission specialist","Automotive mechanic - Medium and HV","Automotive mechanic - HV mechanic mobile plant","Mechanical Engineer","Structural engineer","Fixed plant - Mechanical fitter","Fixed plant - Engineering Trade","Fixed plant - Mechanical trade","Fixed plant - Fitter and turner","OEM technician non trade role","OEM technician - diesel engines","OEM Technician - Trade","Belt Technician - Splicing","Belt Technician - Clipping","Crane inspector","Equipment compliance inspectors","Fire system technicians - Installers","Fire system technicians - Maintainers","Hydraulic and pneumatic hose service technician","Hydraulic and pneumatic maintenance and repairs","Lifting equipment inspector","Building work","Plumbing work","Gas fitting work","Installation or maintenance of certain refrigeration systems","Pressure vessel inspector","Surface preparation and coating application","Tyre fitter > 600mm","Tyre fitter -  < 600mm","Mobile Plant","Serviceperson of Mobile Plant","Welder - NDT test technician","Welder - Welding inspector","Welder - Basic Welding & fabrication","Welder - Intermediate Welding & fabrication","Welder - Advanced Welding & fabrication","Welder - boiler, pressure vessel, pressure piping or high quality welded application","Welder - Poly Welding","Non-recognised qualification / skills","Category 3 Lift Supervisor","Operate Pressure Washer","Qualified Electrical Engineer","Electrical Engineer","Specialist Engineer","Electrical Supervisor","High Voltage","High Voltage Permit Holder/ Verifier","Low Voltage","Extra Low Voltage","Electrical Technician","Auto Electrical","Fibre Optics and Data Technician","Air conditioning, refrigeration","Electrical Apprentices - Trades Assist","Overhead Line Workers","Trailing and Reeler Cable Repairers","Explosion Protected Equip - Wiring Syst","Radiation Technician","Column1"]
["Discipline:",null,"Mechanical","Mechanical","Mechanical","Mechanical","Mechanical","Mechanical","Mechanical","Mechanical","Mechanical","Mechanical","Mechanical","Mechanical","Mechanical","Mechanical","Mechanical","Mechanical","Mechanical","Mechanical","Mechanical","Mechanical","Mechanical","Mechanical","Mechanical","Mechanical","Mechanical","Mechanical","Mechanical","Mechanical","Mechanical","Mechanical","Mechanical","Mechanical","Mechanical","Mechanical","Mechanical","Mechanical","Mechanical","Mechanical","Mechanical","Mechanical","Mechanical","Mechanical","Mechanical","Mechanical","Mechanical","Mechanical","Mechanical","Mechanical","Mechanical","Mechanical","Mechanical","Mechanical","Mechanical","Mechanical","Mechanical","Mechanical","Electrical","Electrical","Electrical","Electrical","Electrical","Electrical","Electrical","Electrical","Electrical","Electrical","Electrical","Electrical","Electrical","Electrical","Electrical","Electrical","Electrical"]
["Level of Supervision Required:",null,"General","General","General","General","General","General","General","General","General","General","General","General","General","General","General","General","General","General","General","General","General","General","General","General","General","General","General","General","General","General","General","General","General","General","General","General","General","General","General","General","General","General","General","General","General","General","General","General","General","General","General","General","General","General","General","General","General","General","General","General","General","General","General","General","General","General","General","General","Direct","General","General","General","General"]
["Competencies:",null,"* Letter of Introduction ","* Letter of Introduction ","* Letter of Introduction ","* Letter of Introduction ","* Letter of Introduction ","* Letter of Introduction ","* Letter of Introduction ","* Statement of Competency","* Statement of Competency","* Statement of Competency","* Statement of Competency","* Statement of Competency","* Statement of Competency","* Statement of Competency","* Statement of Competency","* Statement of Competency","* Statement of Competency","* Statement of Competency","* Statement of Competency","* Statement of Competency","* Statement of Competency","* Statement of Competency","* Statement of Competency","* Statement of Competency","* Statement of Competency","* Statement of Competency","* Statement of Competency","* Statement of Competency","* Statement of Competency","* Statement of Competency","* Statement of Competency","* Statement of Competency","* Statement of Competency","* Statement of Competency","* Statement of Competency","* Statement of Competency","* Statement of Competency","* Statement of Competency","* Statement of Competency","* Statement of Competency","* Statement of Competency","* Statement of Competency","* Statement of Competency","* Statement of Competency","* Statement of Competency","* Statement of Competency","* Statement of Competency","* Statement of Competency","* Statement of Competency","* Statement of Competency","* Statement of Competency","* Statement of Competency","* Statement of Competency","* Statement of Competency","* Statement of Competency","* Statement of Competency","* Statement of Competency","* Statement of Competency","* Statement of Competency","* Statement of Competency","* Statement of Competency","* Statement of Competency","* Statement of Competency","* Statement of Competency","* Statement of Competency","* Statement of Competency","* Statement of Competency","* Statement of Competency","* Statement of Competency","* Statement of Competency","* Statement of Competency","* Statement of Competency","* Statement of Competency"]
[null,null,"T ","T ","T ","T ","T ","T ","T ","T ","T ","T ","T ","T ","T ","T ","T ","T ","T ","T ","T ","T ","T ","T ","T ","T ","T ","T ","T ","T ","T ","T ","T ","T ","T ","T ","T ","T ","T ","T ","T ","T ","T ","T ","T ","T ","T ","T ","T ","T ","T ","T ","T ","T ","T ","T ","T ","T ","Relevant Trade/Engineering Certificate","Relevant Trade/Engineering Certificate","Relevant Trade/Engineering Certificate","* Relevant Trade/Engineering Certificate","* Relevant Trade/Engineering Certificate","Relevant Trade/Engineering Certificate","* Relevant Trade/Engineering Certificate","* Relevant Trade/Engineering Certificate","* Relevant Trade/Engineering Certificate","* Relevant Trade/Engineering Certificate","Relevant Trade/Engineering Certificate","* Relevant Trade/Engineering Certificate","Relevant Trade/Engineering Certificate","* Relevant Trade/Engineering Certificate","Relevant Trade/Engineering Certificate","* Relevant Trade/Engineering Certificate","* Recognised Training"]
[null,null,"* Apprentice Training Agreement/Contract","* Apprentice Training Agreement/Contract","* Apprentice Training Agreement/Contract","* Apprentice Training Agreement/Contract","* Apprentice Training Agreement/Contract","* Apprentice Training Agreement/Contract","* Apprentice Training Agreement/Contract","* Compliance with MAC-MEC-STD-013 section 9.1","* Compliance with MAC-MEC-STD-013 section 9.1","* Compliance with MAC-MEC-STD-013 section 9.1","* Compliance with MAC-MEC-STD-013 section 9.1","* Compliance with MAC-MEC-STD-013 section 9.1","* Compliance with MAC-MEC-STD-013 section 9.1","* Compliance with MAC-MEC-STD-013 section 9.1","* Compliance with MAC-MEC-STD-013 section 9.1","* Compliance with MAC-MEC-STD-013 section 9.1","* Compliance with MAC-MEC-STD-013 section 9.2","* Compliance with MAC-MEC-STD-013 section 9.3","* Compliance with MAC-MEC-STD-013 section 10.2","* Compliance with MAC-MEC-STD-013 section 10.3","* Compliance with MAC-MEC-STD-013 section 11.1","* Compliance with MAC-MEC-STD-013 section 11.1","* Compliance with MAC-MEC-STD-013 section 11.1","* Compliance with MAC-MEC-STD-013 section 11.1","* Compliance with MAC-MEC-STD-013 section 12.1","* Compliance with MAC-MEC-STD-013 section 12.2","* Compliance with MAC-MEC-STD-013 section 12.3","* Compliance with MAC-MEC-STD-013 section 13.3","* Compliance with MAC-MEC-STD-013 section 13.3","* Compliance with MAC-MEC-STD-013 section 13.5","* Compliance with MAC-MEC-STD-013 section 13.7","* Compliance with MAC-MEC-STD-013 section 13.8","* Compliance with MAC-MEC-STD-013 section 13.8","* Compliance with MAC-MEC-STD-013 section 13.9","* Compliance with MAC-MEC-STD-013 section 13.10","* Compliance with MAC-STE-STD-148 section 6.2","* Compliance with MAC-MEC-STD-013 section 13.13","* Compliance with MAC-MEC-STD-013 section 13.13","* Compliance with MAC-MEC-STD-013 section 13.13","* Compliance with MAC-MEC-STD-013 section 13.13","* Compliance with MAC-MEC-STD-013 section 13.14","* Compliance with MAC-MEC-STD-013 section 13.16","* Compliance with MAC-ENG-STD-006 section 10.1","* Compliance with MAC-ENG-STD-006 section 10.1","* Compliance with MAC-MEC-STD-013 section 15.1","* Compliance with MAC-MEC-STD-013 section 15.2","* Compliance with MAC-MEC-STD-013 section 16.1","* Compliance with MAC-MEC-STD-013 section 16.1","* Compliance with MAC-MEC-STD-013 section 16.2","* Compliance with MAC-MEC-STD-013 section 16.2","* Compliance with MAC-MEC-STD-013 section 16.2","* Compliance with MAC-MEC-STD-013 section 16.2","* Compliance with MAC-MEC-STD-013 section 16.2","* Compliance with MAC-MEC-STD-013 section 17.1","* Intermediate Rigger (RI) or Advanced Rigger (RA) High Risk Work Licence","* Compliance with MAC-STE-STD-144 section 6.5","* Engineering Qualifications Recognised by Engineers Australia","* Engineering Qualifications Recognised by Engineers Australia","* Engineering Qualifications Recognised by Engineers Australia","Engineering Qualifications Recognised by Engineers Australia","Engineering Qualifications Recognised by Engineers Australia","Engineering Qualifications Recognised by Engineers Australia","Engineering Qualifications Recognised by Engineers Australia","Engineering Qualifications Recognised by Engineers Australia","Engineering Qualifications Recognised by Engineers Australia","Engineering Qualifications Recognised by Engineers Australia","Engineering Qualifications Recognised by Engineers Australia","Engineering Qualifications Recognised by Engineers Australia","Engineering Qualifications Recognised by Engineers Australia","Engineering Qualifications Recognised by Engineers Australia","Engineering Qualifications Recognised by Engineers Australia","* Recognised Training","* S10 Radiation User Licence issued by NSW EPA"]
[null,null,"T ","T ","T ","T ","T ","T ","T ",null,null,null,null,null,null,null,null,null,null,null,null,null,null,null,null,null,null,null,null,null,null,null,null,null,null,null,null,null,null,null,null,null,null,null,null,null,null,null,null,null,null,null,null,null,null,null,"T ",null,"* DII Certificate of Competence or Chartered Status","DII Certificate of Competence or Chartered Status","DII Certificate of Competence or Chartered Status","DII Certificate of Competence or Chartered Status","DII Certificate of Competence or Chartered Status","DII Certificate of Competence or Chartered Status","DII Certificate of Competence or Chartered Status","DII Certificate of Competence or Chartered Status","DII Certificate of Competence or Chartered Status","DII Certificate of Competence or Chartered Status","DII Certificate of Competence or Chartered Status","DII Certificate of Competence or Chartered Status","DII Certificate of Competence or Chartered Status","DII Certificate of Competence or Chartered Status","DII Certificate of Competence or Chartered Status","* Qualified Supervisors Certificate","* Demonstrated Knowledge"]
[null,null,"TAFE transcript (most recent when applicable)","TAFE transcript (most recent when applicable)","TAFE transcript (most recent when applicable)","TAFE transcript (most recent when applicable)","TAFE transcript (most recent when applicable)","TAFE transcript (most recent when applicable)","TAFE transcript (most recent when applicable)",null,null,null,null,null,null,null,null,null,null,null,null,null,null,null,null,null,null,null,null,null,null,null,null,null,null,null,null,null,null,null,null,null,null,null,null,null,null,null,null,null,null,null,null,null,null,null,"* S1, S2, S3 & G2 (or equivalent)",null,"Recognised Training","Recognised Training","Recognised Training","* Recognised Training","* Recognised Training","* Recognised Training","Recognised Training","Recognised Training","* Recognised Training","* Recognised Training","* Recognised Training","* Recognised Training","* Recognised Training","* Recognised Training","* Recognised Training","* MAC Electrical Induction Package "]
[null,null,"T ","T ","T ","T ","T ","T ","T ",null,null,null,null,null,null,null,null,null,null,null,null,null,null,null,null,null,null,null,null,null,null,null,null,null,null,null,null,null,null,null,null,null,null,null,null,null,null,null,null,null,null,null,null,null,null,null,"T ",null,"Qualified Supervisors Certificate","Qualified Supervisors Certificate","Qualified Supervisors Certificate","* Qualified Supervisors Certificate","* Qualified Supervisors Certificate","Qualified Supervisors Certificate","* Qualified Supervisors Certificate","Qualified Supervisors Certificate","Qualified Supervisors Certificate","Qualified Supervisors Certificate","Qualified Supervisors Certificate","* Qualified Supervisors Certificate","Qualified Supervisors Certificate","Qualified Supervisors Certificate","Qualified Supervisors Certificate","* CPR (Valid within 12 Months)"]
[null,null,"Additional Training e.g. MDG25, confined space, working at heights, other High Risk work licences (as applicable)","Additional Training e.g. MDG25, confined space, working at heights, other High Risk work licences (as applicable)","Additional Training e.g. MDG25, confined space, working at heights, other High Risk work licences (as applicable)","Additional Training e.g. MDG25, confined space, working at heights, other High Risk work licences (as applicable)","Additional Training e.g. MDG25, confined space, working at heights, other High Risk work licences (as applicable)","Additional Training e.g. MDG25, confined space, working at heights, other High Risk work licences (as applicable)","Additional Training e.g. MDG25, confined space, working at heights, other High Risk work licences (as applicable)",null,null,null,null,null,null,null,null,null,null,null,null,null,null,null,null,null,null,null,null,null,null,null,null,null,null,null,null,null,null,null,null,null,null,null,null,null,null,null,null,null,null,null,null,null,null,null,"* Been assessed through 'due process' in relation to preparation of lift documentation and supervision",null,"Australian Communication and Media Authority Open","Australian Communication and Media Authority Open","Australian Communication and Media Authority Open","Australian Communication and Media Authority Open","Australian Communication and Media Authority Open","Australian Communication and Media Authority Open","Australian Communication and Media Authority Open","Australian Communication and Media Authority Open","Australian Communication and Media Authority Open","Australian Communication and Media Authority Open","* Australian Communication and Media Authority Open","Australian Communication and Media Authority Open","Australian Communication and Media Authority Open","Australian Communication and Media Authority Open","Australian Communication and Media Authority Open","* Low Voltage Rescue (Valid Within 12 Months)"]
[null,null,null,null,null,null,null,null,null,null,null,null,null,null,null,null,null,null,null,null,null,null,null,null,null,null,null,null,null,null,null,null,null,null,null,null,null,null,null,null,null,null,null,null,null,null,null,null,null,null,null,null,null,null,null,null,null,null,"Refrigerant Handling Licence","Refrigerant Handling Licence","Refrigerant Handling Licence","Refrigerant Handling Licence","Refrigerant Handling Licence","Refrigerant Handling Licence","Refrigerant Handling Licence","Refrigerant Handling Licence","Refrigerant Handling Licence","Refrigerant Handling Licence","Refrigerant Handling Licence","* Refrigerant Handling Licence","Refrigerant Handling Licence","Refrigerant Handling Licence","Refrigerant Handling Licence","* Experience Prior to Authorisation "]
[null,null,null,null,null,null,null,null,null,null,null,null,null,null,null,null,null,null,null,null,null,null,null,null,null,null,null,null,null,null,null,null,null,null,null,null,null,null,null,null,null,null,null,null,null,null,null,null,null,null,null,null,null,null,null,null,null,null,"Training Competency for AS4761 (Cable Repair)","Training Competency for AS4761 (Cable Repair)","Training Competency for AS4761 (Cable Repair)","Training Competency for AS4761 (Cable Repair)","Training Competency for AS4761 (Cable Repair)","Training Competency for AS4761 (Cable Repair)","Training Competency for AS4761 (Cable Repair)","Training Competency for AS4761 (Cable Repair)","Training Competency for AS4761 (Cable Repair)","Training Competency for AS4761 (Cable Repair)","Training Competency for AS4761 (Cable Repair)","Training Competency for AS4761 (Cable Repair)","Training Competency for AS4761 (Cable Repair)","Training Competency for AS4761 (Cable Repair)","* Training Competency for AS4761 (Cable Repair)","* Demonstrated Knowledge"]
[null,null,null,null,null,null,null,null,null,null,null,null,null,null,null,null,null,null,null,null,null,null,null,null,null,null,null,null,null,null,null,null,null,null,null,null,null,null,null,null,null,null,null,null,null,null,null,null,null,null,null,null,null,null,null,null,null,null,"* * * MAC Electrical Induction Package","* MAC Electrical Induction Package","* MAC Electrical Induction Package ","* MAC Electrical Induction Package ","* MAC Electrical Induction Package ","* MAC Electrical Induction Package ","* MAC Electrical Induction Package ","* MAC Electrical Induction Package ","* MAC Electrical Induction Package ","* MAC Electrical Induction Package ","* MAC Electrical Induction Package ","* MAC Electrical Induction Package ","* MAC Electrical Induction Package ","* MAC Electrical Induction Package ","* MAC Electrical Induction Package ","* EEHA Training - Electrical Equipment in Hazardous Area (UEE42611)"]
[null,null,null,null,null,null,null,null,null,null,null,null,null,null,null,null,null,null,null,null,null,null,null,null,null,null,null,null,null,null,null,null,null,null,null,null,null,null,null,null,null,null,null,null,null,null,null,null,null,null,null,null,null,null,null,null,null,null,"* CPR (Valid within 12 Months)","* CPR (Valid within 12 Months)","CPR (Valid within 12 Months)","* CPR (Valid within 12 Months)","* CPR (Valid within 12 Months)","CPR (Valid within 12 Months)","* CPR (Valid within 12 Months)","* CPR (Valid within 12 Months)","* CPR (Valid within 12 Months)","CPR (Valid within 12 Months)","* CPR (Valid within 12 Months)","* CPR (Valid within 12 Months)","* CPR (Valid within 12 Months)","* CPR (Valid within 12 Months)","* CPR (Valid within 12 Months)"]
[null,null,null,null,null,null,null,null,null,null,null,null,null,null,null,null,null,null,null,null,null,null,null,null,null,null,null,null,null,null,null,null,null,null,null,null,null,null,null,null,null,null,null,null,null,null,null,null,null,null,null,null,null,null,null,null,null,null,"* Low Voltage Rescue (Valid Within 12 Months)","* Low Voltage Rescue (Valid Within 12 Months)","Low Voltage Rescue (Valid Within 12 Months)","* Low Voltage Rescue (Valid Within 12 Months)","* Low Voltage Rescue (Valid Within 12 Months)","Low Voltage Rescue (Valid Within 12 Months)","* Low Voltage Rescue (Valid Within 12 Months)","* Low Voltage Rescue (Valid Within 12 Months)","Low Voltage Rescue (Valid Within 12 Months)","Low Voltage Rescue (Valid Within 12 Months)","Low Voltage Rescue (Valid Within 12 Months)","* Low Voltage Rescue (Valid Within 12 Months)","* Low Voltage Rescue (Valid Within 12 Months)","* Low Voltage Rescue (Valid Within 12 Months)","* Low Voltage Rescue (Valid Within 12 Months)"]
[null,null,null,null,null,null,null,null,null,null,null,null,null,null,null,null,null,null,null,null,null,null,null,null,null,null,null,null,null,null,null,null,null,null,null,null,null,null,null,null,null,null,null,null,null,null,null,null,null,null,null,null,null,null,null,null,null,null,"* Experience Prior to Authorisation ","Experience Prior to Authorisation ","Experience Prior to Authorisation ","Experience Prior to Authorisation ","* Experience Prior to Authorisation ","Experience Prior to Authorisation ","* Experience Prior to Authorisation ","Experience Prior to Authorisation ","Experience Prior to Authorisation ","Experience Prior to Authorisation ","Experience Prior to Authorisation ","Experience Prior to Authorisation ","Experience Prior to Authorisation ","Experience Prior to Authorisation ","Experience Prior to Authorisation "]
[null,null,null,null,null,null,null,null,null,null,null,null,null,null,null,null,null,null,null,null,null,null,null,null,null,null,null,null,null,null,null,null,null,null,null,null,null,null,null,null,null,null,null,null,null,null,null,null,null,null,null,null,null,null,null,null,null,null,"* Experience Required to Maintain Authorisation ","Experience Required to Maintain Authorisation ","Experience Required to Maintain Authorisation ","Experience Required to Maintain Authorisation ","* Experience Required to Maintain Authorisation ","Experience Required to Maintain Authorisation ","Experience Required to Maintain Authorisation ","Experience Required to Maintain Authorisation ","Experience Required to Maintain Authorisation ","Experience Required to Maintain Authorisation ","Experience Required to Maintain Authorisation ","Experience Required to Maintain Authorisation ","Experience Required to Maintain Authorisation ","Experience Required to Maintain Authorisation ","Experience Required to Maintain Authorisation "]
[null,null,null,null,null,null,null,null,null,null,null,null,null,null,null,null,null,null,null,null,null,null,null,null,null,null,null,null,null,null,null,null,null,null,null,null,null,null,null,null,null,null,null,null,null,null,null,null,null,null,null,null,null,null,null,null,null,null,"* Demonstrated Knowledge","* Demonstrated Knowledge","* Demonstrated Knowledge","* Demonstrated Knowledge","* Demonstrated Knowledge","* Demonstrated Knowledge","* Demonstrated Knowledge","* Demonstrated Knowledge","* Demonstrated Knowledge","Demonstrated Knowledge","Demonstrated Knowledge","Demonstrated Knowledge","Demonstrated Knowledge","Demonstrated Knowledge","Demonstrated Knowledge"]
[null,null,null,null,null,null,null,null,null,null,null,null,null,null,null,null,null,null,null,null,null,null,null,null,null,null,null,null,null,null,null,null,null,null,null,null,null,null,null,null,null,null,null,null,null,null,null,null,null,null,null,null,null,null,null,null,null,null,null,null,null,"* Apply risk management or equivalent (S1)"]
[null,null,null,null,null,null,null,null,null,null,null,null,null,null,null,null,null,null,null,null,null,null,null,null,null,null,null,null,null,null,null,null,null,null,null,null,null,null,null,null,null,null,null,null,null,null,null,null,null,null,null,null,null,null,null,null,null,null,null,null,null,"* Conduct safety & health investigations or equivalent (S2)"]
[null,null,null,null,null,null,null,null,null,null,null,null,null,null,null,null,null,null,null,null,null,null,null,null,null,null,null,null,null,null,null,null,null,null,null,null,null,null,null,null,null,null,null,null,null,null,null,null,null,null,null,null,null,null,null,null,null,null,null,null,null,"* Communicate information or equivalent (S3)"]
[null,null,null,null,null,null,null,null,null,null,null,null,null,null,null,null,null,null,null,null,null,null,null,null,null,null,null,null,null,null,null,null,null,null,null,null,null,null,null,null,null,null,null,null,null,null,null,null,null,null,null,null,null,null,null,null,null,null,null,null,null,"* Carry out the risk management process or equivalent (G2)"]

{"sheet":"Lists","index":3,"n_rows":76,"n_cols":8,"rows_kept":76,"cut":false,"hidden":true,"merged":[]}
[]
[null,null,"Discipline Max 6 Permitted",null,null,null,"Competency","Pegasus Code"]
[null,null,"Mechanical",null,null,null,"Apprentice - Mobile Plant Technician","This appointment is not valid until it has been uploaded into Pegasus. Please upload against the role \"Apprentice - Mobile Plant Technician\"  This is your Company's responsibility to organise and must be done prior to commencing at Mt Arthur Coal."]
[null,null,"Electrical",null,null,null,"Apprentice - Mechanical Fitter (Fixed Plant)","This appointment is not valid until it has been uploaded into Pegasus. Please upload against the role \"Apprentice - Mechanical Fitter (Fixed Plant)\"  This is your Company's responsibility to organise and must be done prior to commencing at Mt Arthur Coal."]
[null,null,null,null,null,null,"Automotive mechanic  - Body maker","This appointment is not valid until it has been uploaded into Pegasus. Please upload against the role \"Automotive mechanic  - Body maker\"  This is your Company's responsibility to organise and must be done prior to commencing at Mt Arthur Coal."]
[null,null,null,null,null,null,"Automotive mechanic - Brake mechanic","This appointment is not valid until it has been uploaded into Pegasus. Please upload against the role \"Automotive mechanic - Brake mechanic\"  This is your Company's responsibility to organise and must be done prior to commencing at Mt Arthur Coal."]
[null,null,null,null,null,null,"Automotive mechanic - Exhaust repairer","This appointment is not valid until it has been uploaded into Pegasus. Please upload against the role \"Automotive mechanic - Exhaust repairer\"  This is your Company's responsibility to organise and must be done prior to commencing at Mt Arthur Coal."]
[null,null,null,null,null,null,"Automotive mechanic - Motor Mechanic","This appointment is not valid until it has been uploaded into Pegasus. Please upload against the role \"Automotive mechanic - Motor Mechanic\"  This is your Company's responsibility to organise and must be done prior to commencing at Mt Arthur Coal."]
[null,null,null,null,null,null,"Automotive mechanic - Front end specialist","This appointment is not valid until it has been uploaded into Pegasus. Please upload against the role \"Auto mechanic - Front end specialist\"  This is your Company's responsibility to organise and must be done prior to commencing at Mt Arthur Coal."]
[null,null,null,null,null,null,"Automotive mechanic - Vehicle painter","This appointment is not valid until it has been uploaded into Pegasus. Please upload against the role \"Automotive mechanic - Vehicle painter\"  This is your Company's responsibility to organise and must be done prior to commencing at Mt Arthur Coal."]
[null,null,null,null,null,null,"Automotive mechanic - Panel beater","This appointment is not valid until it has been uploaded into Pegasus. Please upload against the role \"Automotive mechanic - Panel beater\"  This is your Company's responsibility to organise and must be done prior to commencing at Mt Arthur Coal."]
[null,null,"Level of Supervision","Supervision Description",null,null,"Automotive mechanic - Radiator repairer","This appointment is not valid until it has been uploaded into Pegasus. Please upload against the role \"Automotive mechanic - Radiator repairer\"  This is your Company's responsibility to organise and must be done prior to commencing at Mt Arthur Coal."]
[null,null,"Direct","Direct supervision is where a person is under the immediate control and direction of the MAC/Contractor supervisor who must be in attendance at all times.",null,null,"Automotive mechanic - Transmission specialist","This appointment is not valid until it has been uploaded into Pegasus. Please upload against the role \"Auto mechanic - Transmission specialist\"  This is your Company's responsibility to organise and must be done prior to commencing at Mt Arthur Coal."]
[null,null,"General","Requires supervision by a MAC supervisor. The nature of the work, the competence of the person, and understanding of the work needs to be considered to ensure safe and satisfactory work practices are   followed when determining the frequency of supervision attendance on the job.",null,null,"Automotive mechanic - Medium and HV","This appointment is not valid until it has been uploaded into Pegasus. Please upload against the role \"Automotive mechanic - Medium and HV\"  This is your Company's responsibility to organise and must be done prior to commencing at Mt Arthur Coal."]
[null,null,null,null,null,null,"Automotive mechanic - HV mechanic mobile plant","This appointment is not valid until it has been uploaded into Pegasus. Please upload against the role \"Auto mechanic - HV mobile plant\"  This is your Company's responsibility to organise and must be done prior to commencing at Mt Arthur Coal."]
[null,null,null,null,null,null,"Mechanical Engineer","This appointment is not valid until it has been uploaded into Pegasus. Please upload against the role \"Mechanical Engineer\"  This is your Company's responsibility to organise and must be done prior to commencing at Mt Arthur Coal."]
[null,null,null,null,null,null,"Structural engineer","This appointment is not valid until it has been uploaded into Pegasus. Please upload against the role \"Structural engineer\"  This is your Company's responsibility to organise and must be done prior to commencing at Mt Arthur Coal."]
[null,null,null,null,null,null,"Fixed plant - Mechanical fitter","This appointment is not valid until it has been uploaded into Pegasus. Please upload against the role \"Fixed plant - Mechanical fitter\"  This is your Company's responsibility to organise and must be done prior to commencing at Mt Arthur Coal."]
[null,null,null,null,null,null,"Fixed plant - Engineering Trade","This appointment is not valid until it has been uploaded into Pegasus. Please upload against the role \"Fixed plant - Engineering Trade\"  This is your Company's responsibility to organise and must be done prior to commencing at Mt Arthur Coal."]
[null,null,null,null,null,null,"Fixed plant - Mechanical trade","This appointment is not valid until it has been uploaded into Pegasus. Please upload against the role \"Fixed plant - Mechanical trade\"  This is your Company's responsibility to organise and must be done prior to commencing at Mt Arthur Coal."]
[null,null,null,null,null,null,"Fixed plant - Fitter and turner","This appointment is not valid until it has been uploaded into Pegasus. Please upload against the role \"Fixed plant - Fitter and turner\"  This is your Company's responsibility to organise and must be done prior to commencing at Mt Arthur Coal."]
[null,null,null,null,null,null,"OEM technician non trade role","This appointment is not valid until it has been uploaded into Pegasus. Please upload against the role \"OEM technician non trade role\"  This is your Company's responsibility to organise and must be done prior to commencing at Mt Arthur Coal."]
[null,null,"Qualifications",null,null,null,"OEM technician - diesel engines","This appointment is not valid until it has been uploaded into Pegasus. Please upload against the role \"OEM technician - diesel engines\"  This is your Company's responsibility to organise and must be done prior to commencing at Mt Arthur Coal."]
[null,null,null,null,null,null,null,"This appointment is not valid until it has been uploaded into Pegasus. Please upload against the role \"Code1\"  This is your Company's responsibility to organise and must be done prior to commencing at Mt Arthur Coal."]
[null,null,"Cert III Vehicle Automotive",null,null,null,"OEM Technician - Trade","This appointment is not valid until it has been uploaded into Pegasus. Please upload against the role \"OEM Technician - Trade\"  This is your Company's responsibility to organise and must be done prior to commencing at Mt Arthur Coal."]
[null,null,"Cert III Vehicle Industrial",null,null,null,"Belt Technician - Splicing","This appointment is not valid until it has been uploaded into Pegasus. Please upload against the role \"Belt Technician - Splicing\"  This is your Company's responsibility to organise and must be done prior to commencing at Mt Arthur Coal."]
[null,null,"Cert III Vehicle Agricultural",null,null,null,"Belt Technician - Clipping","This appointment is not valid until it has been uploaded into Pegasus. Please upload against the role \"Belt Technician - Clipping\"  This is your Company's responsibility to organise and must be done prior to commencing at Mt Arthur Coal."]
[null,null,"Cert III Heavy Vehicle Plant Mechanical",null,null,null,"Crane inspector","This appointment is not valid until it has been uploaded into Pegasus. Please upload against the role \"Crane inspector\"  This is your Company's responsibility to organise and must be done prior to commencing at Mt Arthur Coal."]
[null,null,"Cert III Engineering Diesel Fitting",null,null,null,"Equipment compliance inspectors","This appointment is not valid until it has been uploaded into Pegasus. Please upload against the role \"Equipment compliance inspectors\"  This is your Company's responsibility to organise and must be done prior to commencing at Mt Arthur Coal."]
[null,null,null,null,null,null,"Fire system technicians - Installers","This appointment is not valid until it has been uploaded into Pegasus. Please upload against the role \"Fire system technicians - Installers\"  This is your Company's responsibility to organise and must be done prior to commencing at Mt Arthur Coal."]
[null,null,null,null,null,null,"Fire system technicians - Maintainers","This appointment is not valid until it has been uploaded into Pegasus. Please upload against the role \"Fire system technicians - Maintainers\"  This is your Company's responsibility to organise and must be done prior to commencing at Mt Arthur Coal."]
[null,null,"Client Contact Info for Support Dialog: \nUse Alt-Enter to force new line.",null,null,null,"Hydraulic and pneumatic hose service technician","This appointment is not valid until it has been uploaded into Pegasus. Please upload against the role \"Hydraulic - pneumatic hose service tech\"  This is your Company's responsibility to organise and must be done prior to commencing at Mt Arthur Coal."]
[null,null,"For all Mt Arthur Coal Support Please contact:\n\nRowan Brindley, Statutory Engineer Mechanical, 02 6544 5260.\nMichael (Bennett) Brewster, Statutory Engineer Electrical, 02 6544 5000.",null,null,null,"Hydraulic and pneumatic maintenance and repairs","This appointment is not valid until it has been uploaded into Pegasus. Please upload against the role \"Hydraulic - pneumatic maint and repairs\"  This is your Company's responsibility to organise and must be done prior to commencing at Mt Arthur Coal."]
[null,null,null,null,null,null,"Lifting equipment inspector","This appointment is not valid until it has been uploaded into Pegasus. Please upload against the role \"Lifting equipment inspector\"  This is your Company's responsibility to organise and must be done prior to commencing at Mt Arthur Coal."]
[null,null,null,null,null,null,"Building work","This appointment is not valid until it has been uploaded into Pegasus. Please upload against the role \"Building work\"  This is your Company's responsibility to organise and must be done prior to commencing at Mt Arthur Coal."]
[null,null,null,null,null,null,"Plumbing work","This appointment is not valid until it has been uploaded into Pegasus. Please upload against the role \"Plumbing work\"  This is your Company's responsibility to organise and must be done prior to commencing at Mt Arthur Coal."]
[null,null,null,null,null,null,"Gas fitting work","This appointment is not valid until it has been uploaded into Pegasus. Please upload against the role \"Gas fitting work\"  This is your Company's responsibility to organise and must be done prior to commencing at Mt Arthur Coal."]
[null,null,null,null,null,null,"Installation or maintenance of certain refrigeration systems","This appointment is not valid until it has been uploaded into Pegasus. Please upload against the role \"Install - maint certain refrigeration sys\"  This is your Company's responsibility to organise and must be done prior to commencing at Mt Arthur Coal."]
[null,null,null,null,null,null,"Pressure vessel inspector","This appointment is not valid until it has been uploaded into Pegasus. Please upload against the role \"Pressure vessel inspector\"  This is your Company's responsibility to organise and must be done prior to commencing at Mt Arthur Coal."]
[null,null,null,null,null,null,"Surface preparation and coating application","This appointment is not valid until it has been uploaded into Pegasus. Please upload against the role \"Surface preparation - coating application\"  This is your Company's responsibility to organise and must be done prior to commencing at Mt Arthur Coal."]
[null,null,null,null,null,null,"Tyre fitter > 600mm","This appointment is not valid until it has been uploaded into Pegasus. Please upload against the role \"Tyre fitter > 600mm\"  This is your Company's responsibility to organise and must be done prior to commencing at Mt Arthur Coal."]
[null,null,null,null,null,null,"Tyre fitter -  < 600mm","This appointment is not valid until it has been uploaded into Pegasus. Please upload against the role \"Tyre fitter -  < 600mm\"  This is your Company's responsibility to organise and must be done prior to commencing at Mt Arthur Coal."]
[null,null,null,null,null,null,"Mobile Plant","This appointment is not valid until it has been uploaded into Pegasus. Please upload against the role \"Mobile Plant\"  This is your Company's responsibility to organise and must be done prior to commencing at Mt Arthur Coal."]
[null,null,null,null,null,null,"Serviceperson of Mobile Plant","This appointment is not valid until it has been uploaded into Pegasus. Please upload against the role \"Serviceperson of Mobile Plant\"  This is your Company's responsibility to organise and must be done prior to commencing at Mt Arthur Coal."]
[null,null,null,null,null,null,"Welder - NDT test technician","This appointment is not valid until it has been uploaded into Pegasus. Please upload against the role \"Welder - NDT test technician\"  This is your Company's responsibility to organise and must be done prior to commencing at Mt Arthur Coal."]
[null,null,null,null,null,null,"Welder - Welding inspector","This appointment is not valid until it has been uploaded into Pegasus. Please upload against the role \"Welder - Welding inspector\"  This is your Company's responsibility to organise and must be done prior to commencing at Mt Arthur Coal."]
[null,null,null,null,null,null,"Welder - Basic Welding & fabrication","This appointment is not valid until it has been uploaded into Pegasus. Please upload against the role \"Welder - Basic Welding & fabrication\"  This is your Company's responsibility to organise and must be done prior to commencing at Mt Arthur Coal."]
[null,null,null,null,null,null,"Welder - Intermediate Welding & fabrication","This appointment is not valid until it has been uploaded into Pegasus. Please upload against the role \"Welder - Intermediate Welding & fabric\"  This is your Company's responsibility to organise and must be done prior to commencing at Mt Arthur Coal."]
[null,null,null,null,null,null,"Welder - Advanced Welding & fabrication","This appointment is not valid until it has been uploaded into Pegasus. Please upload against the role \"Welder - Advanced Welding & fabrication\"  This is your Company's responsibility to organise and must be done prior to commencing at Mt Arthur Coal."]
[null,null,null,null,null,null,"Welder - boiler, pressure vessel, pressure piping or high quality welded application","This appointment is not valid until it has been uploaded into Pegasus. Please upload against the role \"Welder-boiler press vessel-piping/HQ appl\"  This is your Company's responsibility to organise and must be done prior to commencing at Mt Arthur Coal."]
[null,null,null,null,null,null,"Welder - Poly Welding","This appointment is not valid until it has been uploaded into Pegasus. Please upload against the role \"Welder - Poly Welding\"  This is your Company's responsibility to organise and must be done prior to commencing at Mt Arthur Coal."]
[null,null,null,null,null,null,"Non-recognised qualification / skills","This appointment is not valid until it has been uploaded into Pegasus. Please upload against the role \"Non-recognised qualification / skills\"  This is your Company's responsibility to organise and must be done prior to commencing at Mt Arthur Coal."]
[null,null,null,null,null,null,"Operate Pressure Washer","This appointment is not valid until it has been uploaded into Pegasus. Please upload against the role \"Operate Pressure Washer\"  This is your Company's responsibility to organise and must be done prior to commencing at Mt Arthur Coal."]
[null,null,null,null,null,null,"Qualified Electrical Engineer","This appointment is not valid until it has been uploaded into Pegasus. Please upload against the role \"Qualified Electrical Engineer\"  This is your Company's responsibility to organise and must be done prior to commencing at Mt Arthur Coal."]
[null,null,null,null,null,null,"Electrical Engineer","This appointment is not valid until it has been uploaded into Pegasus. Please upload against the role \"Electrical Engineer\"  This is your Company's responsibility to organise and must be done prior to commencing at Mt Arthur Coal."]
[null,null,null,null,null,null,"Specialist Engineer","This appointment is not valid until it has been uploaded into Pegasus. Please upload against the role \"Specialist Engineer\"  This is your Company's responsibility to organise and must be done prior to commencing at Mt Arthur Coal."]
[null,null,null,null,null,null,"Electrical Supervisor","This appointment is not valid until it has been uploaded into Pegasus. Please upload against the role \"Electrical Supervisor\"  This is your Company's responsibility to organise and must be done prior to commencing at Mt Arthur Coal."]
[null,null,null,null,null,null,"High Voltage","This appointment is not valid until it has been uploaded into Pegasus. Please upload against the role \"High Voltage\"  This is your Company's responsibility to organise and must be done prior to commencing at Mt Arthur Coal."]
[null,null,null,null,null,null,"High Voltage Permit Holder/ Verifier","This appointment is not valid until it has been uploaded into Pegasus. Please upload against the role \"HighVoltage Permit Holder/Verifier\"  This is your Company's responsibility to organise and must be done prior to commencing at Mt Arthur Coal."]
[null,null,null,null,null,null,"Low Voltage","This appointment is not valid until it has been uploaded into Pegasus. Please upload against the role \"Low Voltage\"  This is your Company's responsibility to organise and must be done prior to commencing at Mt Arthur Coal."]
[null,null,null,null,null,null,"Extra Low Voltage","This appointment is not valid until it has been uploaded into Pegasus. Please upload against the role \"Extra Low Voltage\"  This is your Company's responsibility to organise and must be done prior to commencing at Mt Arthur Coal."]
[null,null,null,null,null,null,"Electrical Technician","This appointment is not valid until it has been uploaded into Pegasus. Please upload against the role \"Electrical Technician\"  This is your Company's responsibility to organise and must be done prior to commencing at Mt Arthur Coal."]
[null,null,null,null,null,null,"Auto electrical","This appointment is not valid until it has been uploaded into Pegasus. Please upload against the role \"Auto electrical\"  This is your Company's responsibility to organise and must be done prior to commencing at Mt Arthur Coal."]
[null,null,null,null,null,null,"Fibre Optics and Data Technician","This appointment is not valid until it has been uploaded into Pegasus. Please upload against the role \"Fibre Optics and Data Technician\"  This is your Company's responsibility to organise and must be done prior to commencing at Mt Arthur Coal."]
[null,null,null,null,null,null,"Air conditioning, refrigeration","This appointment is not valid until it has been uploaded into Pegasus. Please upload against the role \"Air conditioning, refrigeration\"  This is your Company's responsibility to organise and must be done prior to commencing at Mt Arthur Coal."]
[null,null,null,null,null,null,"Electrical Apprentices - Trades Assist","This appointment is not valid until it has been uploaded into Pegasus. Please upload against the role \"Electrical Apprentices - Trades Assist\"  This is your Company's responsibility to organise and must be done prior to commencing at Mt Arthur Coal."]
[null,null,null,null,null,null,"Overhead Line Workers","This appointment is not valid until it has been uploaded into Pegasus. Please upload against the role \"Overhead Line Workers\"  This is your Company's responsibility to organise and must be done prior to commencing at Mt Arthur Coal."]
[null,null,null,null,null,null,"Trailing and Reeler Cable Repairers","This appointment is not valid until it has been uploaded into Pegasus. Please upload against the role \"Trailing and Reeler Cable Repairers\"  This is your Company's responsibility to organise and must be done prior to commencing at Mt Arthur Coal."]
[null,null,null,null,null,null,"Explosion Protected Equip - Wiring Syst","This appointment is not valid until it has been uploaded into Pegasus. Please upload against the role \"Explosion Protected Equip - Wiring Syst\"  This is your Company's responsibility to organise and must be done prior to commencing at Mt Arthur Coal."]
[null,null,null,null,null,null,"Radiation Technician","This appointment is not valid until it has been uploaded into Pegasus. Please upload against the role \"Radiation Technician\"  This is your Company's responsibility to organise and must be done prior to commencing at Mt Arthur Coal."]
[null,null,null,null,null,null,"Category 3 Lift Supervisor","This appointment is not valid until it has been uploaded into Pegasus. Please upload against the role \"Category 3 Lift Supervisor\"  This is your Company's responsibility to organise and must be done prior to commencing at Mt Arthur Coal."]
[null,null,null,null,null,null,"Apprentice - Fabrication Trade (Boilermaking)","This appointment is not valid until it has been uploaded into Pegasus. Please upload against the role \"Apprentice - Fabrication Trade (Boilermaking)\"  This is your Company's responsibility to organise and must be done prior to commencing at Mt Arthur Coal."]
[null,null,null,null,null,null,"Apprentice - Mechanical Trade (Other)","This appointment is not valid until it has been uploaded into Pegasus. Please upload against the role \"Apprentice - Mechanical Trade (Other)\"  This is your Company's responsibility to organise and must be done prior to commencing at Mt Arthur Coal."]
[null,null,null,null,null,null,"Apprentice - Building Trade (Plumber & Gas Fitter)","This appointment is not valid until it has been uploaded into Pegasus. Please upload against the role \"Apprentice - Building Trade (Plumber & Gas Fitter)\"  This is your Company's responsibility to organise and must be done prior to commencing at Mt Arthur Coal."]
[null,null,null,null,null,null,"Apprentice - Building Trade (Building & Carpentry)","This appointment is not valid until it has been uploaded into Pegasus. Please upload against the role \"Apprentice - Building Trade (Building & Carpentry)\"  This is your Company's responsibility to organise and must be done prior to commencing at Mt Arthur Coal."]
[null,null,null,null,null,null,"Apprentice - Building Trade (Other)","This appointment is not valid until it has been uploaded into Pegasus. Please upload against the role \"Apprentice - Building Trade (Other)\"  This is your Company's responsibility to organise and must be done prior to commencing at Mt Arthur Coal."]

{"sheet":"Competency Working","index":4,"n_rows":105,"n_cols":10,"rows_kept":105,"cut":false,"hidden":true,"merged":[]}
[]
[null,null,null,null,"AllAccepted",{"$f":"IF(OR(CompetencyAreaInput=\"\",COUNTIF(MobilePlantTable,FALSE)>0),FALSE,TRUE)","v":false}]
[]
[]
[null,null,"Selected Competency Area","Checkbox Value","Mandatory","Accepted"]
[3,null,{"$f":"T(IFERROR(INDEX('Competencies Table'!$C$6:$BX$39,$A6,'Workbook Parameters'!$B$3),\"\"))","v":""},false,{"$f":"LEFT(C6)=\"*\"","v":false},{"$f":"IF(E6,D6,TRUE)","v":true},null,false,{"$f":"IF(H6=TRUE,#REF!+1,#REF!)","v":{"$error":"#REF!"}},{"$f":"IF(H6=TRUE,#REF!,\"\")","v":""}]
[4,null,{"$f":"T(IFERROR(INDEX('Competencies Table'!$C$6:$BX$39,$A7,'Workbook Parameters'!$B$3),\"\"))","v":""},false,false,true,null,false,{"$f":"IF(H7=TRUE,I6+1,I6)","v":{"$error":"#REF!"}},{"$f":"IF(H7=TRUE,#REF!,\"\")","v":""}]
[5,null,{"$f":"T(IFERROR(INDEX('Competencies Table'!$C$6:$BX$39,$A8,'Workbook Parameters'!$B$3),\"\"))","v":""},false,false,true,null,false,{"$error":"#REF!"},{"$f":"IF(H8=TRUE,#REF!,\"\")","v":""}]
[6,null,{"$f":"T(IFERROR(INDEX('Competencies Table'!$C$6:$BX$39,$A9,'Workbook Parameters'!$B$3),\"\"))","v":""},false,false,true,null,false,{"$error":"#REF!"},{"$f":"IF(H9=TRUE,#REF!,\"\")","v":""}]
[7,null,{"$f":"T(IFERROR(INDEX('Competencies Table'!$C$6:$BX$39,$A10,'Workbook Parameters'!$B$3),\"\"))","v":""},false,false,true,null,false,{"$error":"#REF!"},{"$f":"IF(H10=TRUE,#REF!,\"\")","v":""}]
[8,null,{"$f":"T(IFERROR(INDEX('Competencies Table'!$C$6:$BX$39,$A11,'Workbook Parameters'!$B$3),\"\"))","v":""},false,false,true,null,false,{"$error":"#REF!"},{"$f":"IF(H11=TRUE,#REF!,\"\")","v":""}]
[9,null,{"$f":"T(IFERROR(INDEX('Competencies Table'!$C$6:$BX$39,$A12,'Workbook Parameters'!$B$3),\"\"))","v":""},false,false,true,null,false,{"$error":"#REF!"},{"$f":"IF(H12=TRUE,#REF!,\"\")","v":""}]
[10,null,{"$f":"T(IFERROR(INDEX('Competencies Table'!$C$6:$BX$39,$A13,'Workbook Parameters'!$B$3),\"\"))","v":""},false,false,true,null,false,{"$error":"#REF!"},{"$f":"IF(H13=TRUE,#REF!,\"\")","v":""}]
[11,null,{"$f":"T(IFERROR(INDEX('Competencies Table'!$C$6:$BX$39,$A14,'Workbook Parameters'!$B$3),\"\"))","v":""},false,false,true,null,false,{"$f":"IF(H14=TRUE,I13+1,I13)","v":{"$error":"#REF!"}},{"$f":"IF(H14=TRUE,#REF!,\"\")","v":""}]
[12,null,{"$f":"T(IFERROR(INDEX('Competencies Table'!$C$6:$BX$39,$A15,'Workbook Parameters'!$B$3),\"\"))","v":""},false,false,true,null,false,{"$error":"#REF!"},{"$f":"IF(H15=TRUE,#REF!,\"\")","v":""}]
[13,null,{"$f":"T(IFERROR(INDEX('Competencies Table'!$C$6:$BX$39,$A16,'Workbook Parameters'!$B$3),\"\"))","v":""},false,false,true,null,false,{"$error":"#REF!"},{"$f":"IF(H16=TRUE,#REF!,\"\")","v":""}]
[14,null,{"$f":"T(IFERROR(INDEX('Competencies Table'!$C$6:$BX$39,$A17,'Workbook Parameters'!$B$3),\"\"))","v":""},false,false,true,null,false,{"$error":"#REF!"},{"$f":"IF(H17=TRUE,#REF!,\"\")","v":""}]
[15,null,{"$f":"T(IFERROR(INDEX('Competencies Table'!$C$6:$BX$39,$A18,'Workbook Parameters'!$B$3),\"\"))","v":""},false,false,true,null,false,{"$error":"#REF!"},{"$f":"IF(H18=TRUE,#REF!,\"\")","v":""}]
[16,null,{"$f":"T(IFERROR(INDEX('Competencies Table'!$C$6:$BX$39,$A19,'Workbook Parameters'!$B$3),\"\"))","v":""},false,false,true,null,false,{"$error":"#REF!"},{"$f":"IF(H19=TRUE,#REF!,\"\")","v":""}]
[17,null,{"$f":"T(IFERROR(INDEX('Competencies Table'!$C$6:$BX$39,$A20,'Workbook Parameters'!$B$3),\"\"))","v":""},false,false,true,null,false,{"$error":"#REF!"},{"$f":"IF(H20=TRUE,#REF!,\"\")","v":""}]
[18,null,{"$f":"T(IFERROR(INDEX('Competencies Table'!$C$6:$BX$39,$A21,'Workbook Parameters'!$B$3),\"\"))","v":""},false,false,true,null,false,{"$error":"#REF!"},{"$f":"IF(H21=TRUE,#REF!,\"\")","v":""}]
[19,null,{"$f":"T(IFERROR(INDEX('Competencies Table'!$C$6:$BX$39,$A22,'Workbook Parameters'!$B$3),\"\"))","v":""},false,false,true,null,false,{"$error":"#REF!"},{"$f":"IF(H22=TRUE,#REF!,\"\")","v":""}]
[20,null,{"$f":"T(IFERROR(INDEX('Competencies Table'!$C$6:$BX$39,$A23,'Workbook Parameters'!$B$3),\"\"))","v":""},false,false,true,null,false,{"$error":"#REF!"},{"$f":"IF(H23=TRUE,#REF!,\"\")","v":""}]
[21,null,{"$f":"T(IFERROR(INDEX('Competencies Table'!$C$6:$BX$39,$A24,'Workbook Parameters'!$B$3),\"\"))","v":""},false,false,true,null,false,{"$error":"#REF!"},{"$f":"IF(H24=TRUE,#REF!,\"\")","v":""}]
[22,null,{"$f":"T(IFERROR(INDEX('Competencies Table'!$C$6:$BX$39,$A25,'Workbook Parameters'!$B$3),\"\"))","v":""},false,false,true,null,false,{"$error":"#REF!"},{"$f":"IF(H25=TRUE,#REF!,\"\")","v":""}]
[23,null,{"$f":"T(IFERROR(INDEX('Competencies Table'!$C$6:$BX$39,$A26,'Workbook Parameters'!$B$3),\"\"))","v":""},false,false,true,null,false,{"$error":"#REF!"},{"$f":"IF(H26=TRUE,#REF!,\"\")","v":""}]
[24,null,{"$f":"T(IFERROR(INDEX('Competencies Table'!$C$6:$BX$39,$A27,'Workbook Parameters'!$B$3),\"\"))","v":""},false,false,true,null,false,{"$error":"#REF!"},{"$f":"IF(H27=TRUE,#REF!,\"\")","v":""}]
[25,null,{"$f":"T(IFERROR(INDEX('Competencies Table'!$C$6:$BX$39,$A28,'Workbook Parameters'!$B$3),\"\"))","v":""},false,false,true,null,false,{"$error":"#REF!"},{"$f":"IF(H28=TRUE,#REF!,\"\")","v":""}]
[26,null,{"$f":"T(IFERROR(INDEX('Competencies Table'!$C$6:$BX$39,$A29,'Workbook Parameters'!$B$3),\"\"))","v":""},false,false,true,null,false,{"$error":"#REF!"},{"$f":"IF(H29=TRUE,#REF!,\"\")","v":""}]
[27,null,{"$f":"T(IFERROR(INDEX('Competencies Table'!$C$6:$BX$39,$A30,'Workbook Parameters'!$B$3),\"\"))","v":""},false,false,true,null,false,{"$error":"#REF!"},{"$f":"IF(H30=TRUE,#REF!,\"\")","v":""}]
[28,null,{"$f":"T(IFERROR(INDEX('Competencies Table'!$C$6:$BX$39,$A31,'Workbook Parameters'!$B$3),\"\"))","v":""},false,false,true,null,false,{"$error":"#REF!"},{"$f":"IF(H31=TRUE,#REF!,\"\")","v":""}]
[29,null,{"$f":"T(IFERROR(INDEX('Competencies Table'!$C$6:$BX$39,$A32,'Workbook Parameters'!$B$3),\"\"))","v":""},false,false,true,null,false,{"$f":"IF(H32=TRUE,I31+1,I31)","v":{"$error":"#REF!"}},{"$f":"IF(H32=TRUE,#REF!,\"\")","v":""}]
[30,null,{"$f":"T(IFERROR(INDEX('Competencies Table'!$C$6:$BX$39,$A33,'Workbook Parameters'!$B$3),\"\"))","v":""},false,false,true,null,false,{"$error":"#REF!"},{"$f":"IF(H33=TRUE,#REF!,\"\")","v":""}]
[31,null,{"$f":"T(IFERROR(INDEX('Competencies Table'!$C$6:$BX$39,$A34,'Workbook Parameters'!$B$3),\"\"))","v":""},false,false,true,null,false,{"$f":"IF(H34=TRUE,I33+1,I33)","v":{"$error":"#REF!"}},{"$f":"IF(H34=TRUE,#REF!,\"\")","v":""}]
[32,null,{"$f":"T(IFERROR(INDEX('Competencies Table'!$C$6:$BX$39,$A35,'Workbook Parameters'!$B$3),\"\"))","v":""},false,false,true,null,false,{"$error":"#REF!"},{"$f":"IF(H35=TRUE,#REF!,\"\")","v":""}]
[33,null,{"$f":"T(IFERROR(INDEX('Competencies Table'!$C$6:$BX$39,$A36,'Workbook Parameters'!$B$3),\"\"))","v":""},false,false,true,null,false,{"$error":"#REF!"},{"$f":"IF(H36=TRUE,#REF!,\"\")","v":""}]
[34,null,{"$f":"T(IFERROR(INDEX('Competencies Table'!$C$6:$BX$39,$A37,'Workbook Parameters'!$B$3),\"\"))","v":""},false,false,true,null,false,{"$error":"#REF!"},{"$f":"IF(H37=TRUE,#REF!,\"\")","v":""}]
[35,null,{"$f":"T(IFERROR(INDEX('Competencies Table'!$C$6:$BX$39,$A38,'Workbook Parameters'!$B$3),\"\"))","v":""},false,{"$f":"LEFT(C38)=\"*\"","v":false},{"$f":"IF(E38,D38,TRUE)","v":true},null,false,{"$error":"#REF!"},{"$f":"IF(H38=TRUE,#REF!,\"\")","v":""}]
[36,null,{"$f":"T(IFERROR(INDEX('Competencies Table'!$C$6:$BX$39,$A39,'Workbook Parameters'!$B$3),\"\"))","v":""},false,false,true,null,false,{"$error":"#REF!"},{"$f":"IF(H39=TRUE,#REF!,\"\")","v":""}]
[37,null,{"$f":"T(IFERROR(INDEX('Competencies Table'!$C$6:$BX$39,$A40,'Workbook Parameters'!$B$3),\"\"))","v":""},false,false,true,null,false,{"$error":"#REF!"},{"$f":"IF(H40=TRUE,#REF!,\"\")","v":""}]
[38,null,{"$f":"T(IFERROR(INDEX('Competencies Table'!$C$6:$BX$39,$A41,'Workbook Parameters'!$B$3),\"\"))","v":""},false,false,true,null,false,{"$error":"#REF!"},{"$f":"IF(H41=TRUE,#REF!,\"\")","v":""}]
[39,null,{"$f":"T(IFERROR(INDEX('Competencies Table'!$C$6:$BX$39,$A42,'Workbook Parameters'!$B$3),\"\"))","v":""},false,false,true,null,false,{"$error":"#REF!"},{"$f":"IF(H42=TRUE,#REF!,\"\")","v":""}]
[40,null,{"$f":"T(IFERROR(INDEX('Competencies Table'!$C$6:$BX$39,$A43,'Workbook Parameters'!$B$3),\"\"))","v":""},false,false,true,null,false,{"$error":"#REF!"},{"$f":"IF(H43=TRUE,#REF!,\"\")","v":""}]
[41,null,{"$f":"T(IFERROR(INDEX('Competencies Table'!$C$6:$BX$39,$A44,'Workbook Parameters'!$B$3),\"\"))","v":""},false,false,true,null,false,{"$error":"#REF!"},{"$f":"IF(H44=TRUE,#REF!,\"\")","v":""}]
[42,null,{"$f":"T(IFERROR(INDEX('Competencies Table'!$C$6:$BX$39,$A45,'Workbook Parameters'!$B$3),\"\"))","v":""},false,false,true,null,false,{"$error":"#REF!"},{"$f":"IF(H45=TRUE,#REF!,\"\")","v":""}]
[43,null,{"$f":"T(IFERROR(INDEX('Competencies Table'!$C$6:$BX$39,$A46,'Workbook Parameters'!$B$3),\"\"))","v":""},false,false,true,null,false,{"$error":"#REF!"},{"$f":"IF(H46=TRUE,#REF!,\"\")","v":""}]
[44,null,{"$f":"T(IFERROR(INDEX('Competencies Table'!$C$6:$BX$39,$A47,'Workbook Parameters'!$B$3),\"\"))","v":""},false,false,true,null,false,{"$error":"#REF!"},{"$f":"IF(H47=TRUE,#REF!,\"\")","v":""}]
[45,null,{"$f":"T(IFERROR(INDEX('Competencies Table'!$C$6:$BX$39,$A48,'Workbook Parameters'!$B$3),\"\"))","v":""},false,false,true,null,false,{"$f":"IF(H48=TRUE,I47+1,I47)","v":{"$error":"#REF!"}},{"$f":"IF(H48=TRUE,#REF!,\"\")","v":""}]
[46,null,{"$f":"T(IFERROR(INDEX('Competencies Table'!$C$6:$BX$39,$A49,'Workbook Parameters'!$B$3),\"\"))","v":""},false,false,true,null,false,{"$error":"#REF!"},{"$f":"IF(H49=TRUE,#REF!,\"\")","v":""}]
[47,null,{"$f":"T(IFERROR(INDEX('Competencies Table'!$C$6:$BX$39,$A50,'Workbook Parameters'!$B$3),\"\"))","v":""},false,false,true,null,false,{"$error":"#REF!"},{"$f":"IF(H50=TRUE,#REF!,\"\")","v":""}]
[48,null,{"$f":"T(IFERROR(INDEX('Competencies Table'!$C$6:$BX$39,$A51,'Workbook Parameters'!$B$3),\"\"))","v":""},false,false,true,null,false,{"$error":"#REF!"},{"$f":"IF(H51=TRUE,#REF!,\"\")","v":""}]
[49,null,{"$f":"T(IFERROR(INDEX('Competencies Table'!$C$6:$BX$39,$A52,'Workbook Parameters'!$B$3),\"\"))","v":""},false,false,true,null,false,{"$error":"#REF!"},{"$f":"IF(H52=TRUE,#REF!,\"\")","v":""}]
[50,null,{"$f":"T(IFERROR(INDEX('Competencies Table'!$C$6:$BX$39,$A53,'Workbook Parameters'!$B$3),\"\"))","v":""},false,false,true,null,false,{"$error":"#REF!"},{"$f":"IF(H53=TRUE,#REF!,\"\")","v":""}]
[51,null,{"$f":"T(IFERROR(INDEX('Competencies Table'!$C$6:$BX$39,$A54,'Workbook Parameters'!$B$3),\"\"))","v":""},false,false,true,null,false,{"$error":"#REF!"},{"$f":"IF(H54=TRUE,#REF!,\"\")","v":""}]
[52,null,{"$f":"T(IFERROR(INDEX('Competencies Table'!$C$6:$BX$39,$A55,'Workbook Parameters'!$B$3),\"\"))","v":""},false,false,true,null,false,{"$error":"#REF!"},{"$f":"IF(H55=TRUE,#REF!,\"\")","v":""}]
[53,null,{"$f":"T(IFERROR(INDEX('Competencies Table'!$C$6:$BX$39,$A56,'Workbook Parameters'!$B$3),\"\"))","v":""},false,false,true,null,false,{"$error":"#REF!"},{"$f":"IF(H56=TRUE,#REF!,\"\")","v":""}]
[54,null,{"$f":"T(IFERROR(INDEX('Competencies Table'!$C$6:$BX$39,$A57,'Workbook Parameters'!$B$3),\"\"))","v":""},false,false,true,null,false,{"$error":"#REF!"},{"$f":"IF(H57=TRUE,#REF!,\"\")","v":""}]
[55,null,{"$f":"T(IFERROR(INDEX('Competencies Table'!$C$6:$BX$39,$A58,'Workbook Parameters'!$B$3),\"\"))","v":""},false,false,true,null,false,{"$error":"#REF!"},{"$f":"IF(H58=TRUE,#REF!,\"\")","v":""}]
[56,null,{"$f":"T(IFERROR(INDEX('Competencies Table'!$C$6:$BX$39,$A59,'Workbook Parameters'!$B$3),\"\"))","v":""},false,false,true,null,false,{"$error":"#REF!"},{"$f":"IF(H59=TRUE,#REF!,\"\")","v":""}]
[57,null,{"$f":"T(IFERROR(INDEX('Competencies Table'!$C$6:$BX$39,$A60,'Workbook Parameters'!$B$3),\"\"))","v":""},false,false,true,null,false,{"$error":"#REF!"},{"$f":"IF(H60=TRUE,#REF!,\"\")","v":""}]
[58,null,{"$f":"T(IFERROR(INDEX('Competencies Table'!$C$6:$BX$39,$A61,'Workbook Parameters'!$B$3),\"\"))","v":""},false,false,true,null,false,{"$error":"#REF!"},{"$f":"IF(H61=TRUE,#REF!,\"\")","v":""}]
[59,null,{"$f":"T(IFERROR(INDEX('Competencies Table'!$C$6:$BX$39,$A62,'Workbook Parameters'!$B$3),\"\"))","v":""},false,false,true,null,false,{"$error":"#REF!"},{"$f":"IF(H62=TRUE,#REF!,\"\")","v":""}]
[60,null,{"$f":"T(IFERROR(INDEX('Competencies Table'!$C$6:$BX$39,$A63,'Workbook Parameters'!$B$3),\"\"))","v":""},false,false,true,null,false,{"$error":"#REF!"},{"$f":"IF(H63=TRUE,#REF!,\"\")","v":""}]
[61,null,{"$f":"T(IFERROR(INDEX('Competencies Table'!$C$6:$BX$39,$A64,'Workbook Parameters'!$B$3),\"\"))","v":""},false,false,true,null,false,{"$error":"#REF!"},{"$f":"IF(H64=TRUE,#REF!,\"\")","v":""}]
[62,null,{"$f":"T(IFERROR(INDEX('Competencies Table'!$C$6:$BX$39,$A65,'Workbook Parameters'!$B$3),\"\"))","v":""},false,false,true,null,false,{"$error":"#REF!"},{"$f":"IF(H65=TRUE,#REF!,\"\")","v":""}]
[63,null,{"$f":"T(IFERROR(INDEX('Competencies Table'!$C$6:$BX$39,$A66,'Workbook Parameters'!$B$3),\"\"))","v":""},false,false,true,null,false,{"$error":"#REF!"},{"$f":"IF(H66=TRUE,#REF!,\"\")","v":""}]
[64,null,{"$f":"T(IFERROR(INDEX('Competencies Table'!$C$6:$BX$39,$A67,'Workbook Parameters'!$B$3),\"\"))","v":""},false,false,true,null,false,{"$error":"#REF!"},{"$f":"IF(H67=TRUE,#REF!,\"\")","v":""}]
[65,null,{"$f":"T(IFERROR(INDEX('Competencies Table'!$C$6:$BX$39,$A68,'Workbook Parameters'!$B$3),\"\"))","v":""},false,false,true,null,false,{"$error":"#REF!"},{"$f":"IF(H68=TRUE,#REF!,\"\")","v":""}]
[66,null,{"$f":"T(IFERROR(INDEX('Competencies Table'!$C$6:$BX$39,$A69,'Workbook Parameters'!$B$3),\"\"))","v":""},false,false,true,null,false,{"$error":"#REF!"},{"$f":"IF(H69=TRUE,#REF!,\"\")","v":""}]
[67,null,{"$f":"T(IFERROR(INDEX('Competencies Table'!$C$6:$BX$39,$A70,'Workbook Parameters'!$B$3),\"\"))","v":""},false,{"$f":"LEFT(C70)=\"*\"","v":false},{"$f":"IF(E70,D70,TRUE)","v":true},null,false,{"$error":"#REF!"},{"$f":"IF(H70=TRUE,#REF!,\"\")","v":""}]
[68,null,{"$f":"T(IFERROR(INDEX('Competencies Table'!$C$6:$BX$39,$A71,'Workbook Parameters'!$B$3),\"\"))","v":""},false,false,true,null,false,{"$error":"#REF!"},{"$f":"IF(H71=TRUE,#REF!,\"\")","v":""}]
[69,null,{"$f":"T(IFERROR(INDEX('Competencies Table'!$C$6:$BX$39,$A72,'Workbook Parameters'!$B$3),\"\"))","v":""},false,false,true,null,false,{"$error":"#REF!"},{"$f":"IF(H72=TRUE,#REF!,\"\")","v":""}]
[70,null,{"$f":"T(IFERROR(INDEX('Competencies Table'!$C$6:$BX$39,$A73,'Workbook Parameters'!$B$3),\"\"))","v":""},false,false,true,null,false,{"$error":"#REF!"},{"$f":"IF(H73=TRUE,#REF!,\"\")","v":""}]
[71,null,{"$f":"T(IFERROR(INDEX('Competencies Table'!$C$6:$BX$39,$A74,'Workbook Parameters'!$B$3),\"\"))","v":""},false,false,true,null,false,{"$error":"#REF!"},{"$f":"IF(H74=TRUE,#REF!,\"\")","v":""}]
[72,null,{"$f":"T(IFERROR(INDEX('Competencies Table'!$C$6:$BX$39,$A75,'Workbook Parameters'!$B$3),\"\"))","v":""},false,false,true,null,false,{"$error":"#REF!"},{"$f":"IF(H75=TRUE,#REF!,\"\")","v":""}]
[73,null,{"$f":"T(IFERROR(INDEX('Competencies Table'!$C$6:$BX$39,$A76,'Workbook Parameters'!$B$3),\"\"))","v":""},false,false,true,null,false,{"$error":"#REF!"},{"$f":"IF(H76=TRUE,#REF!,\"\")","v":""}]
[74,null,{"$f":"T(IFERROR(INDEX('Competencies Table'!$C$6:$BX$39,$A77,'Workbook Parameters'!$B$3),\"\"))","v":""},false,false,true,null,false,{"$error":"#REF!"},{"$f":"IF(H77=TRUE,#REF!,\"\")","v":""}]
[75,null,{"$f":"T(IFERROR(INDEX('Competencies Table'!$C$6:$BX$39,$A78,'Workbook Parameters'!$B$3),\"\"))","v":""},false,false,true,null,false,{"$error":"#REF!"},{"$f":"IF(H78=TRUE,#REF!,\"\")","v":""}]
[76,null,{"$f":"T(IFERROR(INDEX('Competencies Table'!$C$6:$BX$39,$A79,'Workbook Parameters'!$B$3),\"\"))","v":""},false,false,true,null,false,{"$error":"#REF!"},{"$f":"IF(H79=TRUE,#REF!,\"\")","v":""}]
[77,null,{"$f":"T(IFERROR(INDEX('Competencies Table'!$C$6:$BX$39,$A80,'Workbook Parameters'!$B$3),\"\"))","v":""},false,false,true,null,false,{"$error":"#REF!"},{"$f":"IF(H80=TRUE,#REF!,\"\")","v":""}]
[78,null,{"$f":"T(IFERROR(INDEX('Competencies Table'!$C$6:$BX$39,$A81,'Workbook Parameters'!$B$3),\"\"))","v":""},false,false,true,null,false,{"$error":"#REF!"},{"$f":"IF(H81=TRUE,#REF!,\"\")","v":""}]
[79,null,{"$f":"T(IFERROR(INDEX('Competencies Table'!$C$6:$BX$39,$A82,'Workbook Parameters'!$B$3),\"\"))","v":""},false,false,true,null,false,{"$error":"#REF!"},{"$f":"IF(H82=TRUE,#REF!,\"\")","v":""}]
[80,null,{"$f":"T(IFERROR(INDEX('Competencies Table'!$C$6:$BX$39,$A83,'Workbook Parameters'!$B$3),\"\"))","v":""},false,false,true,null,false,{"$error":"#REF!"},{"$f":"IF(H83=TRUE,#REF!,\"\")","v":""}]
[81,null,{"$f":"T(IFERROR(INDEX('Competencies Table'!$C$6:$BX$39,$A84,'Workbook Parameters'!$B$3),\"\"))","v":""},false,false,true,null,false,{"$error":"#REF!"},{"$f":"IF(H84=TRUE,#REF!,\"\")","v":""}]
[82,null,{"$f":"T(IFERROR(INDEX('Competencies Table'!$C$6:$BX$39,$A85,'Workbook Parameters'!$B$3),\"\"))","v":""},false,false,true,null,false,{"$error":"#REF!"},{"$f":"IF(H85=TRUE,#REF!,\"\")","v":""}]
[83,null,{"$f":"T(IFERROR(INDEX('Competencies Table'!$C$6:$BX$39,$A86,'Workbook Parameters'!$B$3),\"\"))","v":""},false,false,true,null,false,{"$error":"#REF!"},{"$f":"IF(H86=TRUE,#REF!,\"\")","v":""}]
[84,null,{"$f":"T(IFERROR(INDEX('Competencies Table'!$C$6:$BX$39,$A87,'Workbook Parameters'!$B$3),\"\"))","v":""},false,false,true,null,false,{"$error":"#REF!"},{"$f":"IF(H87=TRUE,#REF!,\"\")","v":""}]
[85,null,{"$f":"T(IFERROR(INDEX('Competencies Table'!$C$6:$BX$39,$A88,'Workbook Parameters'!$B$3),\"\"))","v":""},false,false,true,null,false,{"$error":"#REF!"},{"$f":"IF(H88=TRUE,#REF!,\"\")","v":""}]
[86,null,{"$f":"T(IFERROR(INDEX('Competencies Table'!$C$6:$BX$39,$A89,'Workbook Parameters'!$B$3),\"\"))","v":""},false,false,true,null,false,{"$error":"#REF!"},{"$f":"IF(H89=TRUE,#REF!,\"\")","v":""}]
[87,null,{"$f":"T(IFERROR(INDEX('Competencies Table'!$C$6:$BX$39,$A90,'Workbook Parameters'!$B$3),\"\"))","v":""},false,false,true,null,false,{"$error":"#REF!"},{"$f":"IF(H90=TRUE,#REF!,\"\")","v":""}]
[88,null,{"$f":"T(IFERROR(INDEX('Competencies Table'!$C$6:$BX$39,$A91,'Workbook Parameters'!$B$3),\"\"))","v":""},false,false,true,null,false,{"$error":"#REF!"},{"$f":"IF(H91=TRUE,#REF!,\"\")","v":""}]
[89,null,{"$f":"T(IFERROR(INDEX('Competencies Table'!$C$6:$BX$39,$A92,'Workbook Parameters'!$B$3),\"\"))","v":""},false,false,true,null,false,{"$error":"#REF!"},{"$f":"IF(H92=TRUE,#REF!,\"\")","v":""}]
[90,null,{"$f":"T(IFERROR(INDEX('Competencies Table'!$C$6:$BX$39,$A93,'Workbook Parameters'!$B$3),\"\"))","v":""},false,false,true,null,false,{"$error":"#REF!"},{"$f":"IF(H93=TRUE,#REF!,\"\")","v":""}]
[91,null,{"$f":"T(IFERROR(INDEX('Competencies Table'!$C$6:$BX$39,$A94,'Workbook Parameters'!$B$3),\"\"))","v":""},false,false,true,null,false,{"$error":"#REF!"},{"$f":"IF(H94=TRUE,#REF!,\"\")","v":""}]
[92,null,{"$f":"T(IFERROR(INDEX('Competencies Table'!$C$6:$BX$39,$A95,'Workbook Parameters'!$B$3),\"\"))","v":""},false,false,true,null,false,{"$error":"#REF!"},{"$f":"IF(H95=TRUE,#REF!,\"\")","v":""}]
[93,null,{"$f":"T(IFERROR(INDEX('Competencies Table'!$C$6:$BX$39,$A96,'Workbook Parameters'!$B$3),\"\"))","v":""},false,false,true,null,false,{"$error":"#REF!"},{"$f":"IF(H96=TRUE,#REF!,\"\")","v":""}]
[94,null,{"$f":"T(IFERROR(INDEX('Competencies Table'!$C$6:$BX$39,$A97,'Workbook Parameters'!$B$3),\"\"))","v":""},false,false,true,null,false,{"$error":"#REF!"},{"$f":"IF(H97=TRUE,#REF!,\"\")","v":""}]
[95,null,{"$f":"T(IFERROR(INDEX('Competencies Table'!$C$6:$BX$39,$A98,'Workbook Parameters'!$B$3),\"\"))","v":""},false,false,true,null,false,{"$error":"#REF!"},{"$f":"IF(H98=TRUE,#REF!,\"\")","v":""}]
[96,null,{"$f":"T(IFERROR(INDEX('Competencies Table'!$C$6:$BX$39,$A99,'Workbook Parameters'!$B$3),\"\"))","v":""},false,false,true,null,false,{"$error":"#REF!"},{"$f":"IF(H99=TRUE,#REF!,\"\")","v":""}]
[97,null,{"$f":"T(IFERROR(INDEX('Competencies Table'!$C$6:$BX$39,$A100,'Workbook Parameters'!$B$3),\"\"))","v":""},false,false,true,null,false,{"$error":"#REF!"},{"$f":"IF(H100=TRUE,#REF!,\"\")","v":""}]
[98,null,{"$f":"T(IFERROR(INDEX('Competencies Table'!$C$6:$BX$39,$A101,'Workbook Parameters'!$B$3),\"\"))","v":""},false,false,true,null,false,{"$error":"#REF!"},{"$f":"IF(H101=TRUE,#REF!,\"\")","v":""}]
[99,null,{"$f":"T(IFERROR(INDEX('Competencies Table'!$C$6:$BX$39,$A102,'Workbook Parameters'!$B$3),\"\"))","v":""},false,false,{"$f":"IF(E102,D102,TRUE)","v":true},null,false,{"$error":"#REF!"},{"$f":"IF(H102=TRUE,#REF!,\"\")","v":""}]
[100,null,{"$f":"T(IFERROR(INDEX('Competencies Table'!$C$6:$BX$39,$A103,'Workbook Parameters'!$B$3),\"\"))","v":""},false,false,{"$f":"IF(E103,D103,TRUE)","v":true},null,false,{"$error":"#REF!"},{"$f":"IF(H103=TRUE,#REF!,\"\")","v":""}]
[101,null,{"$f":"T(IFERROR(INDEX('Competencies Table'!$C$6:$BX$39,$A104,'Workbook Parameters'!$B$3),\"\"))","v":""},false,false,{"$f":"IF(E104,D104,TRUE)","v":true},null,false,{"$error":"#REF!"},{"$f":"IF(H104=TRUE,#REF!,\"\")","v":""}]
[102,null,{"$f":"T(IFERROR(INDEX('Competencies Table'!$C$6:$BX$39,$A105,'Workbook Parameters'!$B$3),\"\"))","v":""},false,false,{"$f":"IF(E105,D105,TRUE)","v":true},null,false,{"$error":"#REF!"},{"$f":"IF(H105=TRUE,#REF!,\"\")","v":""}]

{"sheet":"Workbook Parameters","index":5,"n_rows":5,"n_cols":2,"rows_kept":5,"cut":false,"hidden":true,"merged":[]}
[]
[]
["CompetencyColumn",{"$f":"MATCH(CompetencyAreaInput,'Competencies Table'!$C$5:$BX$5,0)","v":{"$error":"#N/A"}}]
["SupervisionRequired",{"$f":"T(IFERROR(INDEX('Competencies Table'!$C$6:$BX$39,2,B3),\"\"))","v":""}]
["AdminAccess",false]